Workbook

Sheet Tables (hidden)
B1: Named Range: | D1: type234 | I1: Named Range: | J1: Type2345 | R1: Named Range: | S1: Type123 | AA1: Named Range: | AB1: Side12 | AG1: Named Range: | AH1: Side23 | AR1: Man list for drop down | AY1: Named Range: | BA1: Named Range: | BC1: manmod | BT1: Dependant drop down ranges | CX1: Named Range: | CY1: SIDE | DC1: Drop Down options | DG1: Named Range: | DH1: AbsenP | DP1: Named Range: | DQ1: MFGSER
B2: 1x2, 1x3, 1x4 | D2: y | I2: 1x2, 1x3, 1x4, 1x5 | J2: x | R2: 1x1, 1x2, 1x3 | S2: z | AA2: 1high & 2high | AG2: 2high & 3high | AY2: 1x2, 1x3, 1x4 | CX2: 1x1, 1x2, 1x3 | DH2: for part lookup
BA3: 1 | BB3: 2 | BC3: 3 | BD3: 4 | BE3: 5 | BF3: 6 | BG3: 7
B4: Rows | C4: 5 | D4: 4 | E4: 3 | F4: 2 | G4: 1 | H4: Connector | J4: Rows | K4: 5 | L4: 4 | M4: 3 | N4: 2 | O4: 1 | P4: Connector | S4: Rows | T4: 5 | U4: 4 | V4: 3 | W4: 2 | X4: 1 | Y4: Connector | AB4: Rows | AC4: 3 | AD4: 2 | AE4: 1 | AH4: Rows | AI4: 3 | AJ4: 2 | AK4: 1 | AS4: Manufacturer dvLED Series | AV4: Manufacturer dvLED Series | AW4: Series | AX4: Conc | AY4: Option ? | BA4: Conc | BB4: 5 | BC4: 4 | BD4: 3 | BE4: 2 | BF4: 1 | BG4: Conn | BL4: Row COUNT | BP4: SKU | BQ4: MSRP | BU4: SILICONCORE | BV4: LEYARD | BW4: ABSEN | BX4: SAMSUNG | BY4: UNILUMIN | BZ4: VANGUARD | CA4: NANOLUMENS | CB4: AOTO | CC4: BAKO | CD4: BARCO | CE4: CHAINZONE_IMPOSA | CF4: CHRISTIE | CG4: COLEDER | CH4: DELTA | CI4: DGX | CJ4: DIGITAL | CK4: DISPLAY | CL4: ESDLUMEN | CM4: GLIC | CN4: INFI_LED | CO4: LG | CP4: LIGHTHOUSE | CQ4: MITSUBISHI | CR4: PHILIPS | CS4: PixelFlex | CT4: VISUAL | CU4: YES_TECH | CY4: Rows | CZ4: 2 | DA4: 3 | DC4: Select
A5: =(D5*$D$4)+(E5*$E$4)+(F5*$F$4) -> 0 | B5: 1 | J5: 1 | S5: 1 | X5: 1 | Y5: =SUM(T5:X5)-1 -> 0 | AB5: 1 | AE5: 1 | AG5: =($AE$4*AE5)+($AD$4*AD5)+($AC$4*AC5) -> 1 | AH5: 1 | AM5: =($AK$4*AK5)+($AJ$4*AJ5)+($AI$4*AI5) -> 0 | AS5: UNILUMIN | AV5: ABSEN | AW5: Acclaim | AX5: ABSEN Acclaim | BA5: Absen Acclaim | BC5: TIL1X4AA | BD5: TIL1X3AA | BE5: TIL1X2AA | BF5: - | BG5: TILVABAA | BL5: ? | BP5: - | BU5: CAMELLIA | BV5: TVF | BW5: Acclaim | BX5: IFH | BY5: Upanel S | BZ5: CERIUM | CA5: ENGAGE SERIES | CB5: CLD | CC5: BFP | CD5: XT | CE5: LPR | CF5: LED | CG5: ACE BLOCK | CH5: FE | CI5: DL | CJ5: PROJECTION RADIANCE | CK5: LAMP | CL5: EHP | CM5: P | CN5: IL | CO5: LAS | CP5: Q | CQ5: VS | CR5: 9000 Series 27BDL | CS5: Fxe | CT5: LEADER | CU5: MC | CX5: 1 | CY5: 1 | DC5: Yes | DG5: ABSEN Acclaim Plus | DH5: TIL1X5AP | DI5: TIL1X4AP | DJ5: TIL1X3AP | DK5: TIL1X2AP | DM5: TILVABA1 | DP5: 1 | DQ5: 2 | DR5: 3 | DS5: 4 | DT5: 5 | DU5: 6 | DV5: 7 | DW5: 8 | DX5: 9 | DY5: 10 | DZ5: 11 | EA5: 12 | EB5: 13 | EC5: 14
A6: =(D6*$D$4)+(E6*$E$4)+(F6*$F$4) -> 2 | B6: 2 | F6: 1 | H6: =SUM(D6:F6)-1 -> 0 | J6: 2 | N6: 1 | P6: 0 | S6: 2 | W6: 1 | Y6: =SUM(T6:X6)-1 -> 0 | AB6: 2 | AD6: 1 | AG6: =($AE$4*AE6)+($AD$4*AD6)+($AC$4*AC6) -> 2 | AH6: 2 | AJ6: 1 | AM6: =($AE$4*AK6)+($AD$4*AJ6)+($AC$4*AI6) -> 2 | AS6: ABSEN | AV6: UNILUMIN | AW6: Upanel S | AX6: UNILUMIN Upanel S | BA6: Leyard TVF | BC6: TIL1X4PT | BD6: TIL1X3PT | BE6: TIL1X2PT | BF6: - | BG6: TILVABPT | BL6: 1 | BP6: 0 | BU6: DAFFODIL | BV6: CLA | BW6: Acclaim Plus | BX6: IFJ | BY6: UPANEL | BZ6: IRIDIUM | CA6: NIXEL SERIES | CO6: LAA | CX6: 2 | CY6: 2 | CZ6: 1 | DC6: No | DG6: ABSEN Acclaim Pro | DH6: TIL1X5AP | DI6: TIL1X4AP | DJ6: TIL1X3AP | DK6: TIL1X2AP | DM6: TILVABA1 | DP6: Conc | DQ6: 5 | DR6: 4 | DS6: 3 | DT6: 2 | DU6: 1 | DV6: Conn | DW6: Type2345 | DX6: Type234 | DY6: Type123 | DZ6: Table Type | EA6: 3 | EB6: 2 | EC6: 1
A7: 3 | B7: 3 | E7: 1 | H7: =SUM(D7:F7)-1 -> 0 | J7: 3 | M7: 1 | P7: 0 | S7: 3 | V7: 1 | Y7: 0 | AB7: 3 | AD7: 1 | AE7: 1 | AG7: 3 | AH7: 3 | AI7: 1 | AM7: 3 | AS7: BARCO | AV7: LEYARD | AW7: TVF | AX7: LEYARD TVF | BA7: LG LAS | BC7: TIL1X4PT | BD7: TIL1X3PT | BE7: TIL1X2PT | BF7: - | BG7: TILVABPT | BL7: 2 | BP7: TIL1X1IF | BQ7: 519 | BU7: LAVENDER | BV7: DL2 | BW7: Acclaim Pro | BX7: IWJ | BY7: USLIM | BZ7: RHODIUM | CO7: LAP | CX7: 3 | CY7: 3 | DA7: 1 | DP7: Absen Acclaim | DR7: TIL1X4AA | DS7: TIL1X3AA | DT7: TIL1X2AA | DV7: TILVABAA | DX7: Y | DZ7: =DX7 -> Y
A8: 4 | B8: 4 | D8: 1 | H8: 0 | J8: 4 | L8: 1 | P8: 0 | S8: 4 | W8: 2 | Y8: 1 | AB8: 4 | AD8: 2 | AG8: 4 | AH8: 4 | AJ8: 2 | AM8: 4 | AS8: SAMSUNG | AV8: LG | AW8: LAS | AX8: LG LAS | BA8: Unilumin Upanel S | BC8: TIL1X4UU | BD8: TIL1X3UU | BE8: TIL1X2UU | BF8: - | BG8: TILVABUU | BL8: 3 | BP8: TIL1X2AA | BQ8: 599 | BU8: LILY | BV8: TWA | BW8: N PLUS | CX8: 4 | CY8: 4 | CZ8: 2 | DP8: ABSEN Acclaim Plus | DQ8: TIL1X5AP | DR8: TIL1X4AP | DS8: TIL1X3AP | DT8: TIL1X2AP | DV8: TILVAB1 | DW8: X | DZ8: x | EA8: TILSC3HAP | EB8: TILSC2HAP
A9: 5 | B9: 5 | E9: 1 | F9: 1 | H9: 1 | J9: 5 | K9: 1 | P9: 0 | S9: 5 | V9: 1 | W9: 1 | Y9: 1 | AB9: 5 | AD9: 2 | AE9: 1 | AG9: 5 | AH9: 5 | AI9: 1 | AJ9: 1 | AM9: 5 | AS9: LG | AV9: SAMSUNG | AW9: IFH | AX9: SAMSUNG IFH | BA9: Samsung IFH | BD9: TIL1X3IFH | BE9: TIL1X2IFH | BF9: TIL1X1IFH | BG9: TILVABIF | BL9: 4 | BP9: TIL1X2IF | BQ9: 759 | BU9: MAGNOLIA | CX9: 5 | CY9: 5 | CZ9: 1 | DA9: 1 | DP9: ABSEN Acclaim Pro | DQ9: TIL1X5AP | DR9: TIL1X4AP | DS9: TIL1X3AP | DT9: TIL1X2AP | DV9: TILVAB1 | DW9: x | DZ9: x | EA9: TILSC3HAP | EB9: TILSC2HAP
A10: 6 | B10: 6 | E10: 2 | H10: 1 | J10: 6 | M10: 2 | P10: 1 | S10: 6 | V10: 2 | Y10: 1 | AB10: 6 | AD10: 3 | AG10: 6 | AH10: 6 | AI10: 2 | AM10: 6 | AS10: PHILIPS | AV10: BARCO | AW10: XT | AX10: BARCO XT | BA10: Barco XT | BC10: TIL1X4UU | BD10: TIL1X3UU | BE10: TIL1X2UU | BG10: TILVABUU | BL10: 5 | BP10: TIL1X2PT | BQ10: 599 | BU10: ORCHID HD | CX10: 6 | CY10: 6 | DA10: 2 | DC10: Small | DD10: Chief PAC525 | DP10: Leyard TVF | DR10: TIL1X4PT | DS10: TIL1X3PT | DT10: TIL1X2PT | DV10: TILVABPT | DX10: Y | DZ10: y | EA10: TILSC3HPT | EB10: TILSC2HPT
A11: 7 | B11: 7 | D11: 1 | E11: 1 | H11: 1 | J11: 7 | L11: 1 | M11: 1 | P11: 1 | S11: 7 | V11: 1 | X11: 1 | Y11: 1 | AB11: 7 | AD11: 3 | AE11: 1 | AG11: 7 | AH11: 7 | AI11: 1 | AJ11: 2 | AM11: 7 | AS11: AOTO | AV11: ABSEN | AW11: Acclaim Plus | AX11: ABSEN Acclaim Plus | BL11: 6 | BP11: TIL1X2PT | BQ11: 599 | CX11: 7 | CY11: 7 | CZ11: 2 | DA11: 1 | DC11: Medium | DD11: Chief PAC526 | DP11: LG LAS | DR11: TIL1X4PT | DS11: TIL1X3PT | DT11: TIL1X2PT | DV11: TILVABPT | DX11: Y | DZ11: y | EA11: TILSC3HPT | EB11: TILSC2HPT
A12: 8 | B12: 8 | D12: 2 | H12: 1 | J12: 8 | L12: 2 | P12: 1 | S12: 8 | V12: 2 | W12: 1 | Y12: 2 | AB12: 8 | AD12: 4 | AG12: 8 | AH12: 8 | AI12: 2 | AJ12: 1 | AM12: 8 | AS12: LEYARD | AV12: ABSEN | AW12: Acclaim Pro | AX12: ABSEN Acclaim Pro | BL12: 7 | BP12: TIL1X2UU | BQ12: 599 | CX12: 8 | CY12: 8 | CZ12: 1 | DA12: 2 | DC12: Large | DD12: Chief PAC527 | DP12: Unilumin Upanel S | DQ12: TIL1X5UU | DR12: TIL1X4UU | DS12: TIL1X3UU | DT12: TIL1X2UU | DV12: TILVABUU | DX12: Y | DZ12: x | EA12: TILSC3HUU | EB12: TILSC2HUU
A13: 9 | B13: 9 | D13: 1 | E13: 1 | F13: 1 | H13: 2 | J13: 9 | K13: 1 | L13: 1 | P13: 1 | S13: 9 | V13: 3 | Y13: 2 | AB13: 9 | AD13: 4 | AE13: 1 | AG13: 9 | AH13: 9 | AI13: 3 | AM13: 9 | AS13: CHAINZONE-IMPOSA | AV13: ABSEN | AW13: N PLUS | AX13: ABSEN N PLUS | AY13: Please contact Chief Project Manager for available options (952)-225-6931 or send an email to lukas.westin@legrand.com | BL13: 8 | BP13: TIL1X3AA | BQ13: 889 | CX13: 9 | CY13: 9 | DA13: 3 | DP13: Barco XT | DQ13: TIL1X5UU | DR13: TIL1X4UU | DS13: TIL1X3UU | DT13: TIL1X2UU | DV13: TILVABUU | DX13: Y | DZ13: x | EA13: TILSC3HUU | EB13: TILSC2HUU
A14: 10 | B14: 10 | D14: 2 | F14: 1 | H14: 2 | J14: 10 | K14: 2 | P14: 1 | S14: 10 | V14: 3 | X14: 1 | Y14: 3 | AB14: 10 | AD14: 5 | AG14: 10 | AH14: 10 | AI14: 2 | AJ14: 2 | AM14: 10 | AS14: CHRISTIE | AV14: AOTO | AW14: CLD | AX14: AOTO CLD | AY14: Please contact Chief Project Manager for available options (952)-225-6931 or send an email to lukas.westin@legrand.com | BL14: 9 | BP14: TIL1X3IF | BQ14: 889 | CX14: 10 | CY14: 10 | CZ14: 5 | DP14: Philips 9000 Series 27BDL | DQ14: TIL1X5PH | DR14: TIL1X4PH | DS14: TIL1X3PH | DT14: TIL1X2PH | DV14: TILVAB1 | DW14: x | DZ14: x | EA14: TILSC3HPH | EB14: TILSC2HPH
A15: 11 | B15: 11 | D15: 2 | E15: 1 | H15: 2 | J15: 11 | K15: 1 | L15: 1 | N15: 1 | P15: 2 | S15: 11 | V15: 3 | W15: 1 | Y15: 3 | AB15: 11 | AD15: 5 | AE15: 1 | AG15: 11 | AH15: 11 | AI15: 3 | AJ15: 1 | AM15: 11 | AS15: COLEDER | AV15: BAKO | AW15: BFP | AX15: BAKO BFP | AY15: Please contact Chief Project Manager for available options (952)-225-6931 or send an email to lukas.westin@legrand.com | BL15: 10 | BP15: TIL1X3PT | BQ15: 889 | CX15: 11 | CY15: 11 | CZ15: 1 | DA15: 3 | DP15: Samsung IFJ | DR15: TIL1X4IFJ | DS15: TIL1X3IFJ | DT15: TIL1X2IFJ | DV15: TILVAB1 | DX15: Y | DZ15: y
A16: 12 | B16: 12 | D16: 3 | H16: 2 | J16: 12 | L16: 3 | P16: 2 | S16: 12 | V16: 4 | Y16: 3 | AB16: 12 | AD16: 6 | AG16: 12 | AH16: 12 | AI16: 4 | AM16: 12 | AS16: DELTA | AV16: CHAINZONE/IMPOSA | AW16: LPR | AX16: CHAINZONE/IMPOSA LPR | AY16: Please contact Chief Project Manager for available options (952)-225-6931 or send an email to lukas.westin@legrand.com | BL16: 11 | BP16: TIL1X3PT | BQ16: 889 | CX16: 12 | CY16: 12 | CZ16: 6 | DP16: Samsung IFH | DS16: TIL1X3IFH | DT16: TIL1X2IFH | DU16: TIL1X1IFH | DV16: TILVAB1 | DY16: Z | DZ16: z | EB16: TILSC2HIFH | EC16: TILSC1HIFH
A17: 13 | B17: 13 | D17: 2 | E17: 1 | F17: 1 | H17: 3 | J17: 13 | K17: 2 | M17: 1 | P17: 2 | S17: 13 | V17: 4 | X17: 1 | Y17: 4 | AB17: 13 | AD17: 6 | AE17: 1 | AG17: 13 | AH17: 13 | AI17: 3 | AJ17: 2 | AM17: 13 | AS17: DGX | AV17: CHRISTIE | AW17: LED | AX17: CHRISTIE LED | AY17: Please contact Chief Project Manager for available options (952)-225-6931 or send an email to lukas.westin@legrand.com | BB17: 2 | BC17: 3 | BD17: 4 | BE17: 5 | BF17: Connector | BL17: 12 | BP17: TIL1X3UU | BQ17: 889 | CX17: 13 | CY17: 13 | CZ17: 2 | DA17: 3
A18: 14 | B18: 14 | D18: 3 | F18: 1 | H18: 3 | J18: 14 | K18: 2 | L18: 1 | P18: 2 | S18: 14 | V18: 4 | W18: 1 | Y18: 4 | AB18: 14 | AD18: 7 | AG18: 14 | AH18: 14 | AI18: 4 | AJ18: 1 | AM18: 14 | AS18: DIGITAL | AV18: COLEDER | AW18: ACE BLOCK | AX18: COLEDER ACE BLOCK | AY18: Please contact Chief Project Manager for available options (952)-225-6931 or send an email to lukas.westin@legrand.com | BB18: TIL1X2AP | BC18: TIL1X3AP | BD18: TIL1X4AP | BE18: TIL1X5AP | BF18: TILVABA1 | BL18: 13 | BP18: TIL1X4AA | BQ18: 1089 | CX18: 14 | CY18: 14 | CZ18: 7
A19: 15 | B19: 15 | D19: 3 | E19: 1 | H19: 3 | J19: 15 | K19: 3 | P19: 2 | S19: 15 | V19: 5 | Y19: 4 | AB19: 15 | AD19: 7 | AE19: 1 | AG19: 15 | AH19: 15 | AI19: 5 | AM19: 15 | AS19: DISPLAY | AV19: DELTA | AW19: FE | AX19: DELTA FE | AY19: Please contact Chief Project Manager for available options (952)-225-6931 or send an email to lukas.westin@legrand.com | BL19: 14 | BP19: TIL1X4PT | BQ19: 1089 | CX19: 15 | CY19: 15 | DA19: 5
A20: 16 | B20: 16 | D20: 4 | H20: 3 | J20: 16 | L20: 4 | P20: 3 | S20: 16 | V20: 5 | X20: 1 | Y20: 5 | AB20: 16 | AD20: 8 | AG20: 16 | AH20: 16 | AI20: 4 | AJ20: 2 | AM20: 16 | AS20: ESDLUMEN | AV20: DGX | AW20: DL | AX20: DGX DL | AY20: Please contact Chief Project Manager for available options (952)-225-6931 or send an email to lukas.westin@legrand.com | BL20: 15 | BP20: TIL1X4PT | BQ20: 1089 | CX20: 16 | CY20: 16 | CZ20: 8
A21: 17 | B21: 17 | D21: 3 | E21: 1 | F21: 1 | H21: 4 | J21: 17 | K21: 3 | N21: 1 | P21: 3 | S21: 17 | V21: 5 | W21: 1 | Y21: 5 | AB21: 17 | AD21: 8 | AE21: 1 | AG21: 17 | AH21: 17 | AI21: 3 | AJ21: 4 | AM21: 17 | AS21: GLIC | AV21: DIGITAL | AW21: PROJECTION RADIANCE | AX21: DIGITAL PROJECTION RADIANCE | AY21: Please contact Chief Project Manager for available options (952)-225-6931 or send an email to lukas.westin@legrand.com | BL21: 16 | BP21: TIL1X4UU | BQ21: 1089 | CX21: 17 | CY21: 17 | CZ21: 4 | DA21: 3
A22: 18 | B22: 18 | D22: 4 | F22: 1 | H22: 4 | J22: 18 | L22: 4 | N22: 1 | P22: 4 | S22: 18 | V22: 6 | Y22: 5 | AB22: 18 | AD22: 9 | AG22: 18 | AH22: 18 | AI22: 6 | AM22: 18 | AS22: INFI_LED | AV22: DISPLAY | AW22: LAMP | AX22: DISPLAY LAMP | AY22: Please contact Chief Project Manager for available options (952)-225-6931 or send an email to lukas.westin@legrand.com | BL22: 17 | BP22: TILVABAA | BQ22: 49 | CX22: 18 | CY22: 18 | CZ22: 6 | DA22: 2
A23: 19 | B23: 19 | D23: 4 | E23: 1 | H23: 4 | J23: 19 | K23: 3 | L23: 1 | P23: 3 | S23: 19 | V23: 6 | X23: 1 | Y23: 6 | AB23: 19 | AD23: 9 | AE23: 1 | AG23: 19 | AH23: 19 | AI23: 5 | AJ23: 2 | AM23: 19 | AS23: LIGHTHOUSE | AV23: ESDLUMEN | AW23: EHP | AX23: ESDLUMEN EHP | AY23: Please contact Chief Project Manager for available options (952)-225-6931 or send an email to lukas.westin@legrand.com | BL23: 18 | BP23: TILVABIF | BQ23: 66 | CX23: 19 | CY23: 19 | CZ23: 2 | DA23: 5
A24: 20 | B24: 20 | D24: 5 | H24: 4 | J24: 20 | K24: 4 | P24: 3 | S24: 20 | V24: 6 | W24: 1 | Y24: 6 | AB24: 20 | AD24: 10 | AG24: 20 | AH24: 20 | AI24: 6 | AJ24: 1 | AM24: 20 | AS24: MITSUBISHI | AV24: GLIC | AW24: P | AX24: GLIC P | AY24: Please contact Chief Project Manager for available options (952)-225-6931 or send an email to lukas.westin@legrand.com | BL24: 19 | BP24: TILVABPT | BQ24: 49 | CX24: 20 | CY24: 20 | CZ24: 4 | DA24: 4
A25: 21 | B25: 21 | D25: 4 | E25: 1 | F25: 1 | H25: 5 | J25: 21 | K25: 1 | L25: 4 | P25: 4 | S25: 21 | V25: 7 | Y25: 6 | AB25: 21 | AD25: 10 | AE25: 1 | AG25: 21 | AH25: 21 | AI25: 7 | AM25: 21 | AS25: NANOLUMENS | AV25: INFI LED | AW25: IL | AX25: INFI LED IL | AY25: Please contact Chief Project Manager for available options (952)-225-6931 or send an email to lukas.westin@legrand.com | BL25: 20 | BP25: TILVABPT | BQ25: 49 | CX25: 21 | CY25: 21 | CZ25: 3 | DA25: 5
A26: 22 | B26: 22 | D26: 5 | F26: 1 | H26: 5 | J26: 22 | K26: 4 | N26: 1 | P26: 4 | S26: 22 | V26: 7 | X26: 1 | Y26: 7 | AB26: 22 | AD26: 11 | AG26: 22 | AH26: 22 | AI26: 6 | AJ26: 2 | AM26: 22 | AS26: BAKO | AV26: LEYARD | AW26: CLA | AX26: LEYARD CLA | AY26: Please contact Chief Project Manager for available options (952)-225-6931 or send an email to lukas.westin@legrand.com | BL26: 21 | BP26: TILVABUU | BQ26: 49 | CX26: 22 | CY26: 22 | CZ26: 5 | DA26: 4
A27: 23 | B27: 23 | D27: 5 | E27: 1 | H27: 5 | J27: 23 | K27: 4 | M27: 1 | P27: 4 | S27: 23 | V27: 7 | W27: 1 | Y27: 7 | AB27: 23 | AD27: 11 | AE27: 1 | AG27: 23 | AH27: 23 | AI27: 7 | AJ27: 1 | AM27: 23 | AS27: PixelFlex | AV27: LEYARD | AW27: DL2 | AX27: LEYARD DL2 | AY27: Please contact Chief Project Manager for available options (952)-225-6931 or send an email to lukas.westin@legrand.com | BL27: 22 | CX27: 23 | CY27: 23 | CZ27: 7 | DA27: 3
A28: 24 | B28: 24 | D28: 6 | H28: 5 | J28: 24 | K28: 4 | L28: 1 | P28: 4 | S28: 24 | V28: 8 | Y28: 7 | AB28: 24 | AD28: 12 | AG28: 24 | AH28: 24 | AI28: 8 | AM28: 24 | AS28: SILICONCORE | AV28: LEYARD | AW28: TWA | AX28: LEYARD TWA | AY28: Please contact Chief Project Manager for available options (952)-225-6931 or send an email to lukas.westin@legrand.com | BL28: 23 | CX28: 24 | CY28: 24 | CZ28: 6 | DA28: 4
A29: 25 | B29: 25 | D29: 5 | E29: 1 | F29: 1 | H29: 6 | J29: 25 | K29: 5 | P29: 4 | S29: 25 | V29: 8 | X29: 1 | Y29: 8 | AB29: 25 | AD29: 12 | AE29: 1 | AG29: 25 | AH29: 25 | AI29: 7 | AJ29: 2 | AM29: 25 | AS29: VANGUARD | AV29: LG | AW29: LAA | AX29: LG LAA | AY29: Please contact Chief Project Manager for available options (952)-225-6931 or send an email to lukas.westin@legrand.com | BL29: 24 | CX29: 25 | CY29: 25 | CZ29: 5 | DA29: 5
A30: 26 | B30: 26 | D30: 6 | F30: 1 | H30: 6 | J30: 26 | K30: 4 | L30: 1 | N30: 1 | P30: 5 | S30: 26 | V30: 8 | X30: 1 | Y30: 8 | AB30: 26 | AD30: 13 | AG30: 26 | AH30: 26 | AI30: 6 | AJ30: 4 | AM30: 26 | AS30: VISUAL | AV30: LG | AW30: LAP | AX30: LG LAP | AY30: Please contact Chief Project Manager for available options (952)-225-6931 or send an email to lukas.westin@legrand.com | BL30: 25 | CX30: 26 | CY30: 26 | CZ30: 4 | DA30: 6
A31: 27 | B31: 27 | D31: 6 | E31: 1 | H31: 6 | J31: 27 | K31: 5 | N31: 1 | P31: 5 | S31: 27 | V31: 9 | Y31: 8 | AB31: 27 | AD31: 13 | AE31: 1 | AG31: 27 | AH31: 27 | AI31: 9 | AM31: 27 | AS31: YES_TECH | AV31: LIGHTHOUSE | AW31: Q | AX31: LIGHTHOUSE Q | AY31: Please contact Chief Project Manager for available options (952)-225-6931 or send an email to lukas.westin@legrand.com | BL31: 26 | CX31: 27 | CY31: 27 | CZ31: 6 | DA31: 5
A32: 28 | B32: 28 | D32: 7 | H32: 6 | J32: 28 | K32: 5 | M32: 1 | P32: 5 | S32: 28 | V32: 9 | X32: 1 | Y32: 9 | AB32: 28 | AD32: 14 | AG32: 28 | AH32: 28 | AI32: 8 | AJ32: 2 | AM32: 28 | AV32: MITSUBISHI | AW32: VS | AX32: MITSUBISHI VS | AY32: Please contact Chief Project Manager for available options (952)-225-6931 or send an email to lukas.westin@legrand.com | BL32: 27 | CX32: 28 | CY32: 28 | CZ32: 8 | DA32: 4
A33: 29 | B33: 29 | D33: 6 | E33: 1 | F33: 1 | H33: 7 | J33: 29 | K33: 5 | L33: 1 | P33: 5 | S33: 29 | V33: 9 | W33: 1 | Y33: 9 | AB33: 29 | AD33: 14 | AE33: 1 | AG33: 29 | AH33: 29 | AI33: 7 | AJ33: 4 | AM33: 29 | AV33: NANOLUMENS | AW33: ENGAGE SERIES | AX33: NANOLUMENS ENGAGE SERIES | AY33: Please contact Chief Project Manager for available options (952)-225-6931 or send an email to lukas.westin@legrand.com | BL33: 28 | CX33: 29 | CY33: 29 | CZ33: 4 | DA33: 7
A34: 30 | B34: 30 | D34: 7 | F34: 1 | H34: 7 | J34: 30 | K34: 6 | P34: 5 | S34: 30 | V34: 10 | Y34: 9 | AB34: 30 | AD34: 15 | AG34: 30 | AH34: 30 | AI34: 10 | AM34: 30 | AV34: NANOLUMENS | AW34: NIXEL SERIES | AX34: NANOLUMENS NIXEL SERIES | AY34: Please contact Chief Project Manager for available options (952)-225-6931 or send an email to lukas.westin@legrand.com | BL34: 29 | CX34: 30 | CY34: 30 | CZ34: 6 | DA34: 6
AV35: PHILIPS | AW35: 9000 Series 27BDL | AX35: PHILIPS 9000 Series 27BDL | BL35: 30
AV36: PixelFlex | AW36: Fxe | AX36: PixelFlex Fxe | AY36: Please contact Chief Project Manager for available options (952)-225-6931 or send an email to lukas.westin@legrand.com
AV37: SAMSUNG | AW37: IFJ | AX37: SAMSUNG IFJ
AV38: SAMSUNG | AW38: IFW | AX38: SAMSUNG IWJ | AY38: Please contact Chief Project Manager for available options (952)-225-6931 or send an email to lukas.westin@legrand.com
AV39: SILICONCORE | AW39: CAMELLIA | AX39: SILICONCORE CAMELLIA | AY39: Please contact Chief Project Manager for available options (952)-225-6931 or send an email to lukas.westin@legrand.com
AV40: SILICONCORE | AW40: DAFFODIL | AX40: SILICONCORE DAFFODIL | AY40: Please contact Chief Project Manager for available options (952)-225-6931 or send an email to lukas.westin@legrand.com
AV41: SILICONCORE | AW41: LAVENDER | AX41: SILICONCORE LAVENDER | AY41: Please contact Chief Project Manager for available options (952)-225-6931 or send an email to lukas.westin@legrand.com
AV42: SILICONCORE | AW42: LILY | AX42: SILICONCORE LILY | AY42: Please contact Chief Project Manager for available options (952)-225-6931 or send an email to lukas.westin@legrand.com
AV43: SILICONCORE | AW43: MAGNOLIA | AX43: SILICONCORE MAGNOLIA | AY43: Please contact Chief Project Manager for available options (952)-225-6931 or send an email to lukas.westin@legrand.com
AV44: SILICONCORE | AW44: ORCHID HD | AX44: SILICONCORE ORCHID HD | AY44: Please contact Chief Project Manager for available options (952)-225-6931 or send an email to lukas.westin@legrand.com
AV45: UNILUMIN | AW45: UPANEL | AX45: UNILUMIN UPANEL | AY45: Please contact Chief Project Manager for available options (952)-225-6931 or send an email to lukas.westin@legrand.com
AV46: UNILUMIN | AW46: USLIM | AX46: UNILUMIN USLIM | AY46: Please reference USLIM Configure Tool tab
AV47: VANGUARD | AW47: CERIUM | AX47: VANGUARD CERIUM | AY47: Please contact Chief Project Manager for available options (952)-225-6931 or send an email to lukas.westin@legrand.com
AV48: VANGUARD | AW48: IRIDIUM | AX48: VANGUARD IRIDIUM | AY48: Please contact Chief Project Manager for available options (952)-225-6931 or send an email to lukas.westin@legrand.com
AV49: VANGUARD | AW49: RHODIUM | AX49: VANGUARD RHODIUM | AY49: Please contact Chief Project Manager for available options (952)-225-6931 or send an email to lukas.westin@legrand.com
AV50: VISUAL | AW50: LEADER | AX50: VISUAL LEADER | AY50: Please contact Chief Project Manager for available options (952)-225-6931 or send an email to lukas.westin@legrand.com
AV51: YES TECH | AW51: MC | AX51: YES TECH MC | AY51: Please contact Chief Project Manager for available options (952)-225-6931 or send an email to lukas.westin@legrand.com

Sheet Configure Tool
B5: TiLED Part Number Configurator
E6: =+C8&" "&E8 -> UNILUMIN Upanel S
E7: =IFERROR(VLOOKUP(E6,MFGSER,11,FALSE),"") -> x | F7: acclaim p
B8: Select Manufacturer | C8: UNILUMIN | D8: Select dvLED Series | E8: Upanel S | I8: =+B12 -> 5 | J8: =+C12-1 -> 4 | K8: =+J8-1 -> 3 | L8: 2 | M8: 1 | N8: 0 | O8: -1 | P8: -2 | Q8: -3 | R8: -4 | S8: -5 | T8: -6 | U8: -7 | V8: -8 | W8: -9 | X8: -10 | Y8: -11 | Z8: -12 | AA8: -13 | AB8: -14 | AC8: -15 | AD8: -16 | AE8: -17 | AF8: -18 | AG8: -19 | AH8: -20 | AI8: -21 | AJ8: -22 | AK8: -23 | AL8: -24
B9: =IF(C9="Please Call Chief Project Manager for available options. (952)-225-6931","X","Z") -> Z | C9: =VLOOKUP(E6,CALL,2,FALSE) ->  | I9: =+I8-1 -> 4 | J9: =+(J8>0.99) -> TRUE | K9: TRUE | L9: TRUE | M9: TRUE | N9: FALSE | O9: FALSE | P9: FALSE | Q9: FALSE | R9: FALSE | S9: FALSE | T9: FALSE | U9: FALSE | V9: FALSE | W9: FALSE | X9: FALSE | Y9: FALSE | Z9: FALSE | AA9: FALSE | AB9: FALSE | AC9: FALSE | AD9: FALSE | AE9: FALSE | AF9: FALSE | AG9: FALSE | AH9: FALSE | AI9: FALSE | AJ9: FALSE | AK9: FALSE | AL9: FALSE
I10: =+I9-1 -> 3 | J10: =+I10>0.99 -> TRUE | K10: =IF((AND(K9=TRUE, J10=TRUE)), TRUE, FALSE) -> TRUE | L10: TRUE | M10: TRUE | N10: FALSE | O10: FALSE | P10: FALSE | Q10: FALSE | R10: FALSE | S10: FALSE | T10: FALSE | U10: FALSE | V10: FALSE | W10: FALSE | X10: FALSE | Y10: FALSE | Z10: FALSE | AA10: FALSE | AB10: FALSE | AC10: FALSE | AD10: FALSE | AE10: FALSE | AF10: FALSE | AG10: FALSE | AH10: FALSE | AI10: FALSE | AJ10: FALSE | AK10: FALSE | AL10: FALSE
B11: How Many Rows? (How many TiLES high?) | C11: How Many Columns? (How many TiLES wide?) | I11: 2 | J11: TRUE | K11: TRUE | L11: =IF((AND(L10=TRUE, K11=TRUE)), TRUE, FALSE) -> TRUE | M11: TRUE | N11: FALSE | O11: FALSE | P11: FALSE | Q11: FALSE | R11: FALSE | S11: FALSE | T11: FALSE | U11: FALSE | V11: FALSE | W11: FALSE | X11: FALSE | Y11: FALSE | Z11: FALSE | AA11: FALSE | AB11: FALSE | AC11: FALSE | AD11: FALSE | AE11: FALSE | AF11: FALSE | AG11: FALSE | AH11: FALSE | AI11: FALSE | AJ11: FALSE | AK11: FALSE | AL11: FALSE
B12: 5 | C12: 5 | I12: 1 | J12: TRUE | K12: TRUE | L12: TRUE | M12: TRUE | N12: FALSE | O12: FALSE | P12: FALSE | Q12: FALSE | R12: FALSE | S12: FALSE | T12: FALSE | U12: FALSE | V12: FALSE | W12: FALSE | X12: FALSE | Y12: FALSE | Z12: FALSE | AA12: FALSE | AB12: FALSE | AC12: FALSE | AD12: FALSE | AE12: FALSE | AF12: FALSE | AG12: FALSE | AH12: FALSE | AI12: FALSE | AJ12: FALSE | AK12: FALSE | AL12: FALSE
B13: For configuations taller than 10 displays high contact Chief Project Manager at (952)-225-6931 or send an email to lukas.westin@legrand.com | I13: 0 | J13: FALSE | K13: FALSE | L13: FALSE | M13: FALSE | N13: FALSE | O13: FALSE | P13: FALSE | Q13: FALSE | R13: FALSE | S13: FALSE | T13: FALSE | U13: FALSE | V13: FALSE | W13: FALSE | X13: FALSE | Y13: FALSE | Z13: FALSE | AA13: FALSE | AB13: FALSE | AC13: FALSE | AD13: FALSE | AE13: FALSE | AF13: FALSE | AG13: FALSE | AH13: FALSE | AI13: FALSE | AJ13: FALSE | AK13: FALSE | AL13: FALSE
I14: -1 | J14: FALSE | K14: FALSE | L14: FALSE | M14: FALSE | N14: FALSE | O14: FALSE | P14: FALSE | Q14: FALSE | R14: FALSE | S14: FALSE | T14: FALSE | U14: FALSE | V14: FALSE | W14: FALSE | X14: FALSE | Y14: FALSE | Z14: FALSE | AA14: FALSE | AB14: FALSE | AC14: FALSE | AD14: FALSE | AE14: FALSE | AF14: FALSE | AG14: FALSE | AH14: FALSE | AI14: FALSE | AJ14: FALSE | AK14: FALSE | AL14: FALSE
B15: Wall Mount Part # | C15: Qty | E15: Side Cover Part # | F15: Qty | I15: -2 | J15: FALSE | K15: FALSE | L15: FALSE | M15: FALSE | N15: FALSE | O15: FALSE | P15: FALSE | Q15: FALSE | R15: FALSE | S15: FALSE | T15: FALSE | U15: FALSE | V15: FALSE | W15: FALSE | X15: FALSE | Y15: FALSE | Z15: FALSE | AA15: FALSE | AB15: FALSE | AC15: FALSE | AD15: FALSE | AE15: FALSE | AF15: FALSE | AG15: FALSE | AH15: FALSE | AI15: FALSE | AJ15: FALSE | AK15: FALSE | AL15: FALSE
B16: =VLOOKUP(E6,MFGSER,2,FALSE) -> TIL1X5UU | C16: =IF($E$7="X",VLOOKUP($B$12,type2345,2,FALSE),IF($E$7="y",VLOOKUP($B$12,type234,2,FALSE),IF($E$7="Z",VLOOKUP($B$12,type123,2,FALSE))))*C12 -> 5 | E16: =IFERROR(VLOOKUP(E6,MFGSER,12,FALSE),"") -> TILSC3HUU | F16: =IF($E$7="X",VLOOKUP($B$12,Side23,2,FALSE),IF($E$7="y",VLOOKUP($B$12,Side23,2,FALSE),IF($E$7="Z",VLOOKUP($B$12,Side12,2,FALSE)))) -> 1 | I16: -3 | J16: FALSE | K16: FALSE | L16: FALSE | M16: FALSE | N16: FALSE | O16: FALSE | P16: FALSE | Q16: FALSE | R16: FALSE | S16: FALSE | T16: FALSE | U16: FALSE | V16: FALSE | W16: FALSE | X16: FALSE | Y16: FALSE | Z16: FALSE | AA16: FALSE | AB16: FALSE | AC16: FALSE | AD16: FALSE | AE16: FALSE | AF16: FALSE | AG16: FALSE | AH16: FALSE | AI16: FALSE | AJ16: FALSE | AK16: FALSE | AL16: FALSE
B17: =VLOOKUP(E6,MFGSER,3,FALSE) -> TIL1X4UU | C17: =IF($E$7="X",VLOOKUP($B$12,type2345,3,FALSE),IF($E$7="y",VLOOKUP($B$12,type234,3,FALSE),IF($E$7="Z",VLOOKUP($B$12,type123,3,FALSE))))*C12 -> 0 | E17: =IFERROR(VLOOKUP(E6,MFGSER,13,FALSE),"") -> TILSC2HUU | F17: =IF($E$7="X",VLOOKUP($B$12,Side23,3,FALSE),IF($E$7="y",VLOOKUP($B$12,Side23,3,FALSE),IF($E$7="Z",VLOOKUP($B$12,Side12,3,FALSE)))) -> 1 | I17: -4 | J17: FALSE | K17: FALSE | L17: FALSE | M17: FALSE | N17: FALSE | O17: FALSE | P17: FALSE | Q17: FALSE | R17: FALSE | S17: FALSE | T17: FALSE | U17: FALSE | V17: FALSE | W17: FALSE | X17: FALSE | Y17: FALSE | Z17: FALSE | AA17: FALSE | AB17: FALSE | AC17: FALSE | AD17: FALSE | AE17: FALSE | AF17: FALSE | AG17: FALSE | AH17: FALSE | AI17: FALSE | AJ17: FALSE | AK17: FALSE | AL17: FALSE
B18: =VLOOKUP(E6,MFGSER,4,FALSE) -> TIL1X3UU | C18: =IF($E$7="X",VLOOKUP($B$12,type2345,4,FALSE),IF($E$7="y",VLOOKUP($B$12,type234,4,FALSE),IF($E$7="Z",VLOOKUP($B$12,type123,4,FALSE))))*C12 -> 0 | E18: =IFERROR(VLOOKUP(E6,MFGSER,14,FALSE),"") -> 0 | F18: =IF($E$7="X",VLOOKUP($B$12,Side23,4,FALSE),IF($E$7="y",VLOOKUP($B$12,Side23,4,FALSE),IF($E$7="Z",VLOOKUP($B$12,Side12,4,FALSE)))) -> 0 | I18: -5 | J18: FALSE | K18: FALSE | L18: FALSE | M18: FALSE | N18: FALSE | O18: FALSE | P18: FALSE | Q18: FALSE | R18: FALSE | S18: FALSE | T18: FALSE | U18: FALSE | V18: FALSE | W18: FALSE | X18: FALSE | Y18: FALSE | Z18: FALSE | AA18: FALSE | AB18: FALSE | AC18: FALSE | AD18: FALSE | AE18: FALSE | AF18: FALSE | AG18: FALSE | AH18: FALSE | AI18: FALSE | AJ18: FALSE | AK18: FALSE | AL18: FALSE
B19: =VLOOKUP(E6,MFGSER,5,FALSE) -> TIL1X2UU | C19: =IF($E$7="X",VLOOKUP($B$12,type2345,5,FALSE),IF($E$7="y",VLOOKUP($B$12,type234,5,FALSE),IF($E$7="Z",VLOOKUP($B$12,type123,5,FALSE))))*C12 -> 0 | I19: -6 | J19: FALSE | K19: FALSE | L19: FALSE | M19: FALSE | N19: FALSE | O19: =IF((AND(O18=TRUE, N19=TRUE)), TRUE, FALSE) -> FALSE | P19: FALSE | Q19: FALSE | R19: FALSE | S19: FALSE | T19: FALSE | U19: FALSE | V19: FALSE | W19: FALSE | X19: FALSE | Y19: FALSE | Z19: FALSE | AA19: FALSE | AB19: FALSE | AC19: FALSE | AD19: FALSE | AE19: FALSE | AF19: FALSE | AG19: FALSE | AH19: FALSE | AI19: FALSE | AJ19: FALSE | AK19: FALSE | AL19: FALSE
B20: =VLOOKUP(E6,MFGSER,6,FALSE) -> 0 | C20: =IF($E$7="X",VLOOKUP($B$12,type2345,6,FALSE),IF($E$7="y",VLOOKUP($B$12,type234,6,FALSE),IF($E$7="Z",VLOOKUP($B$12,type123,6,FALSE))))*C12 -> 0 | I20: -7 | J20: FALSE | K20: =IF((AND(K19=TRUE, J20=TRUE)), TRUE, FALSE) -> FALSE | L20: FALSE | M20: FALSE | N20: FALSE | O20: FALSE | P20: FALSE | Q20: FALSE | R20: FALSE | S20: FALSE | T20: FALSE | U20: FALSE | V20: FALSE | W20: FALSE | X20: FALSE | Y20: FALSE | Z20: FALSE | AA20: FALSE | AB20: FALSE | AC20: FALSE | AD20: FALSE | AE20: FALSE | AF20: FALSE | AG20: FALSE | AH20: FALSE | AI20: FALSE | AJ20: FALSE | AK20: FALSE | AL20: FALSE
B21: =VLOOKUP(E6,MFGSER,7,FALSE) -> TILVABUU | C21: =IF($E$7="X",VLOOKUP($B$12,type2345,7,FALSE),IF($E$7="y",VLOOKUP($B$12,type234,7,FALSE),IF($E$7="Z",VLOOKUP($B$12,type123,7,FALSE))))*C12 -> 0 | I21: -8 | J21: FALSE | K21: FALSE | L21: FALSE | M21: FALSE | N21: FALSE | O21: FALSE | P21: FALSE | Q21: FALSE | R21: FALSE | S21: FALSE | T21: FALSE | U21: FALSE | V21: FALSE | W21: FALSE | X21: FALSE | Y21: FALSE | Z21: FALSE | AA21: FALSE | AB21: FALSE | AC21: FALSE | AD21: FALSE | AE21: FALSE | AF21: FALSE | AG21: FALSE | AH21: FALSE | AI21: FALSE | AJ21: FALSE | AK21: FALSE | AL21: FALSE
I22: -9 | J22: FALSE | K22: FALSE | L22: FALSE | M22: FALSE | N22: FALSE | O22: FALSE | P22: FALSE | Q22: FALSE | R22: FALSE | S22: FALSE | T22: FALSE | U22: FALSE | V22: FALSE | W22: FALSE | X22: FALSE | Y22: FALSE | Z22: FALSE | AA22: FALSE | AB22: FALSE | AC22: FALSE | AD22: FALSE | AE22: FALSE | AF22: FALSE | AG22: FALSE | AH22: FALSE | AI22: FALSE | AJ22: FALSE | AK22: FALSE | AL22: FALSE
I23: -10 | J23: FALSE | K23: FALSE | L23: FALSE | M23: FALSE | N23: FALSE | O23: FALSE | P23: FALSE | Q23: FALSE | R23: FALSE | S23: FALSE | T23: FALSE | U23: FALSE | V23: FALSE | W23: FALSE | X23: FALSE | Y23: FALSE | Z23: FALSE | AA23: FALSE | AB23: FALSE | AC23: FALSE | AD23: FALSE | AE23: FALSE | AF23: FALSE | AG23: FALSE | AH23: FALSE | AI23: FALSE | AJ23: FALSE | AK23: FALSE | AL23: FALSE
B24: legrandav.com/chief | I24: -11 | J24: FALSE | K24: FALSE | L24: FALSE | M24: FALSE | N24: FALSE | O24: FALSE | P24: FALSE | Q24: FALSE | R24: FALSE | S24: FALSE | T24: FALSE | U24: FALSE | V24: FALSE | W24: FALSE | X24: FALSE | Y24: FALSE | Z24: FALSE | AA24: FALSE | AB24: FALSE | AC24: FALSE | AD24: FALSE | AE24: FALSE | AF24: FALSE | AG24: FALSE | AH24: FALSE | AI24: FALSE | AJ24: FALSE | AK24: FALSE | AL24: FALSE
I25: -12 | J25: FALSE | K25: FALSE | L25: FALSE | M25: FALSE | N25: FALSE | O25: FALSE | P25: FALSE | Q25: FALSE | R25: FALSE | S25: FALSE | T25: FALSE | U25: FALSE | V25: FALSE | W25: FALSE | X25: FALSE | Y25: FALSE | Z25: FALSE | AA25: FALSE | AB25: FALSE | AC25: FALSE | AD25: FALSE | AE25: FALSE | AF25: FALSE | AG25: FALSE | AH25: FALSE | AI25: FALSE | AJ25: FALSE | AK25: FALSE | AL25: FALSE
A26: =+E18&F18 -> 00 | I26: -13 | J26: FALSE | K26: FALSE | L26: FALSE | M26: FALSE | N26: FALSE | O26: FALSE | P26: FALSE | Q26: FALSE | R26: FALSE | S26: FALSE | T26: FALSE | U26: FALSE | V26: FALSE | W26: FALSE | X26: FALSE | Y26: FALSE | Z26: FALSE | AA26: FALSE | AB26: FALSE | AC26: FALSE | AD26: FALSE | AE26: FALSE | AF26: FALSE | AG26: FALSE | AH26: FALSE | AI26: FALSE | AJ26: FALSE | AK26: FALSE | AL26: FALSE
A27: =+E18&F18 -> 00 | I27: -14 | J27: FALSE | K27: FALSE | L27: FALSE | M27: FALSE | N27: FALSE | O27: FALSE | P27: FALSE | Q27: FALSE | R27: FALSE | S27: FALSE | T27: FALSE | U27: FALSE | V27: FALSE | W27: FALSE | X27: FALSE | Y27: FALSE | Z27: FALSE | AA27: FALSE | AB27: FALSE | AC27: FALSE | AD27: FALSE | AE27: FALSE | AF27: FALSE | AG27: FALSE | AH27: FALSE | AI27: FALSE | AJ27: FALSE | AK27: FALSE | AL27: FALSE
A28: =+E18&F18 -> 00 | I28: -15 | J28: FALSE | K28: FALSE | L28: FALSE | M28: FALSE | N28: FALSE | O28: FALSE | P28: FALSE | Q28: FALSE | R28: FALSE | S28: FALSE | T28: FALSE | U28: FALSE | V28: FALSE | W28: FALSE | X28: FALSE | Y28: FALSE | Z28: FALSE | AA28: FALSE | AB28: FALSE | AC28: FALSE | AD28: FALSE | AE28: FALSE | AF28: FALSE | AG28: FALSE | AH28: FALSE | AI28: FALSE | AJ28: FALSE | AK28: FALSE | AL28: FALSE
I29: -16 | J29: FALSE | K29: FALSE | L29: FALSE | M29: FALSE | N29: FALSE | O29: FALSE | P29: FALSE | Q29: FALSE | R29: FALSE | S29: FALSE | T29: FALSE | U29: FALSE | V29: FALSE | W29: FALSE | X29: FALSE | Y29: FALSE | Z29: FALSE | AA29: FALSE | AB29: FALSE | AC29: FALSE | AD29: FALSE | AE29: FALSE | AF29: FALSE | AG29: FALSE | AH29: FALSE | AI29: FALSE | AJ29: FALSE | AK29: FALSE | AL29: FALSE
I30: -17 | J30: FALSE | K30: FALSE | L30: FALSE | M30: FALSE | N30: FALSE | O30: FALSE | P30: FALSE | Q30: FALSE | R30: FALSE | S30: FALSE | T30: FALSE | U30: FALSE | V30: FALSE | W30: FALSE | X30: FALSE | Y30: FALSE | Z30: FALSE | AA30: FALSE | AB30: FALSE | AC30: FALSE | AD30: FALSE | AE30: FALSE | AF30: FALSE | AG30: FALSE | AH30: FALSE | AI30: FALSE | AJ30: FALSE | AK30: FALSE | AL30: FALSE
I31: -18 | J31: FALSE | K31: FALSE | L31: FALSE | M31: FALSE | N31: FALSE | O31: FALSE | P31: FALSE | Q31: FALSE | R31: FALSE | S31: FALSE | T31: FALSE | U31: FALSE | V31: FALSE | W31: FALSE | X31: FALSE | Y31: FALSE | Z31: FALSE | AA31: FALSE | AB31: FALSE | AC31: FALSE | AD31: FALSE | AE31: FALSE | AF31: FALSE | AG31: FALSE | AH31: FALSE | AI31: FALSE | AJ31: FALSE | AK31: FALSE | AL31: FALSE
I32: -19 | J32: FALSE | K32: FALSE | L32: FALSE | M32: FALSE | N32: FALSE | O32: FALSE | P32: FALSE | Q32: FALSE | R32: FALSE | S32: FALSE | T32: FALSE | U32: FALSE | V32: FALSE | W32: FALSE | X32: FALSE | Y32: FALSE | Z32: FALSE | AA32: FALSE | AB32: FALSE | AC32: FALSE | AD32: FALSE | AE32: FALSE | AF32: FALSE | AG32: FALSE | AH32: FALSE | AI32: FALSE | AJ32: FALSE | AK32: FALSE | AL32: FALSE
I33: -20 | J33: FALSE | K33: FALSE | L33: FALSE | M33: FALSE | N33: FALSE | O33: FALSE | P33: FALSE | Q33: FALSE | R33: FALSE | S33: FALSE | T33: FALSE | U33: FALSE | V33: FALSE | W33: FALSE | X33: FALSE | Y33: FALSE | Z33: FALSE | AA33: FALSE | AB33: FALSE | AC33: FALSE | AD33: FALSE | AE33: FALSE | AF33: FALSE | AG33: FALSE | AH33: FALSE | AI33: FALSE | AJ33: FALSE | AK33: FALSE | AL33: FALSE
I34: -21 | J34: FALSE | K34: FALSE | L34: FALSE | M34: FALSE | N34: FALSE | O34: FALSE | P34: FALSE | Q34: FALSE | R34: FALSE | S34: FALSE | T34: FALSE | U34: FALSE | V34: FALSE | W34: FALSE | X34: FALSE | Y34: FALSE | Z34: FALSE | AA34: FALSE | AB34: FALSE | AC34: FALSE | AD34: FALSE | AE34: FALSE | AF34: FALSE | AG34: FALSE | AH34: FALSE | AI34: FALSE | AJ34: FALSE | AK34: FALSE | AL34: FALSE
I35: -22 | J35: FALSE | K35: FALSE | L35: FALSE | M35: FALSE | N35: FALSE | O35: FALSE | P35: FALSE | Q35: FALSE | R35: FALSE | S35: FALSE | T35: FALSE | U35: FALSE | V35: FALSE | W35: FALSE | X35: FALSE | Y35: FALSE | Z35: FALSE | AA35: =IF((AND(AA34=TRUE, Z35=TRUE)), TRUE, FALSE) -> FALSE | AB35: FALSE | AC35: FALSE | AD35: FALSE | AE35: FALSE | AF35: FALSE | AG35: FALSE | AH35: FALSE | AI35: FALSE | AJ35: FALSE | AK35: FALSE | AL35: FALSE
I36: -23 | J36: FALSE | K36: =IF((AND(K35=TRUE, J36=TRUE)), TRUE, FALSE) -> FALSE | L36: FALSE | M36: FALSE | N36: FALSE | O36: FALSE | P36: FALSE | Q36: FALSE | R36: FALSE | S36: FALSE | T36: FALSE | U36: FALSE | V36: FALSE | W36: FALSE | X36: FALSE | Y36: FALSE | Z36: FALSE | AA36: FALSE | AB36: FALSE | AC36: FALSE | AD36: FALSE | AE36: FALSE | AF36: FALSE | AG36: FALSE | AH36: FALSE | AI36: FALSE | AJ36: FALSE | AK36: FALSE | AL36: FALSE
I37: -24 | J37: FALSE | K37: FALSE | L37: FALSE | M37: FALSE | N37: FALSE | O37: FALSE | P37: FALSE | Q37: FALSE | R37: FALSE | S37: FALSE | T37: FALSE | U37: FALSE | V37: FALSE | W37: FALSE | X37: FALSE | Y37: FALSE | Z37: FALSE | AA37: FALSE | AB37: FALSE | AC37: FALSE | AD37: FALSE | AE37: FALSE | AF37: FALSE | AG37: FALSE | AH37: FALSE | AI37: FALSE | AJ37: FALSE | AK37: FALSE | AL37: FALSE
I38: =+I37-1 -> -25 | J38: =+I38>0.99 -> FALSE | K38: =IF((AND(K37=TRUE, J38=TRUE)), TRUE, FALSE) -> FALSE | L38: FALSE | M38: FALSE | N38: FALSE | O38: FALSE | P38: FALSE | Q38: FALSE | R38: FALSE | S38: FALSE | T38: FALSE | U38: =IF((AND(U37=TRUE, T38=TRUE)), TRUE, FALSE) -> FALSE | V38: FALSE | W38: FALSE | X38: FALSE | Y38: FALSE | Z38: FALSE | AA38: FALSE | AB38: FALSE | AC38: FALSE | AD38: FALSE | AE38: =IF((AND(AE37=TRUE, AD38=TRUE)), TRUE, FALSE) -> FALSE | AF38: FALSE | AG38: FALSE | AH38: FALSE | AI38: FALSE | AJ38: FALSE | AK38: FALSE | AL38: FALSE
I39: =+I38-1 -> -26 | J39: =+I39>0.99 -> FALSE | K39: FALSE | L39: FALSE | M39: FALSE | N39: FALSE | O39: FALSE | P39: FALSE | Q39: FALSE | R39: FALSE | S39: FALSE | T39: FALSE | U39: FALSE | V39: FALSE | W39: FALSE | X39: FALSE | Y39: FALSE | Z39: FALSE | AA39: FALSE | AB39: FALSE | AC39: FALSE | AD39: FALSE | AE39: FALSE | AF39: FALSE | AG39: FALSE | AH39: FALSE | AI39: FALSE | AJ39: FALSE | AK39: FALSE | AL39: FALSE

Sheet PANELS (hidden)
A1: MANUFACTURER | B1: MODEL NUMBER | C1: HEIGHT (MM) | D1: WIDTH (MM) | E1: DEPTH (MM) | F1: WEIGHT (KG) | G1: HEIGHT (IN.) | H1: WIDTH (IN.) | I1: DEPTH (IN.) | J1: WEIGHT (LBS.) | K1: PIXEL PITCH | L1: RATIO .5625 = 16:9 1.33 = 4:3 | M1: SQUARE METERS | N1: LED'S/M^2 | O1: FRONT SERVICABLE | P1: REAR ACCESS ONLY | Q1: CHIEF MOUNT | R1: VERT. CONN. KIT | S1: REBRAND | T1: MOUNTING PATTERN | Y1: ASPECT RATIO SET UPS | AD1: PIXEL MATRIX PER PANEL | AE1: RETAIL PRICING | AI1: CLAMPING/ALIGNMENT
T2: HEIGHT (mm) | U2: HEIGHT (IN) | V2: WIDTH (mm) | W2: WIDTH (IN) | X2: SCREW SIZE (mm) | Y2: 1920 X 1080 | Z2: 2560 X 1440 | AA2: 2880 X 1620 | AB2: 3840 X 2160 | AC2: 4800 X 2700 | AE2: B&H | AF2: NEXT WAREHOUSE | AG2: NEUTRON USA | AH2: MANUFACTURER MSRP
A3: ABSEN | B3: N2 | C3: 288 | D3: 576 | E3: 57 | F3: 6.4 | G3: =C3/25.4 -> 11.33858268 | H3: =D3/25.4 -> 22.67716535 | I3: 2.244094488 | J3: =F3*2.2 -> 14.08 | K3: 2.4 | L3: =C3/D3 -> 0.5 | M3: =C3*D3/1000000 -> 0.165888 | N3: =1/M3 -> 6.02816358 | O3: X | AD3: 240 X 120 | AI3: ALIGNED WITH CLAMPING BLOCK. SCREENS CLAMPED TOGETHER ON THE SIDES THEN CLAMPING BLOCK REMOVED. ALSO CLAMPED ON THE TOP AND BOTTOM OF THE SCREENS.
A4: ABSEN | B4: N3 | C4: 288 | D4: 864 | E4: 54 | F4: 7.1 | G4: 11.33858268 | H4: 34.01574803 | I4: 2.125984252 | J4: 15.62 | K4: 3.2 | L4: =C4/D4 -> 0.3333333333 | M4: 0.248832 | N4: =1/M4 -> 4.01877572 | O4: X | AD4: 360 X 90
A5: ABSEN | B5: N4 | C5: 288 | D5: 864 | E5: 54 | F5: 7.1 | G5: 11.33858268 | H5: 34.01574803 | I5: 2.125984252 | J5: 15.62 | K5: 4 | L5: 0.3333333333 | M5: 0.248832 | N5: 4.01877572 | O5: X | AD5: 288 X 72
A6: ABSEN | B6: N5 | C6: 288 | D6: 864 | E6: 54 | F6: 7.1 | G6: 11.33858268 | H6: 34.01574803 | I6: 2.125984252 | J6: 15.62 | K6: 5.14 | L6: 0.3333333333 | M6: 0.248832 | N6: 4.01877572 | O6: X | AD6: 224 X 56
A7: ABSEN | B7: N3 PLUS | C7: 288 | D7: 1440 | E7: 54 | F7: 10 | G7: 11.33858268 | H7: 56.69291339 | I7: 2.125984252 | J7: 22 | K7: 3.2 | L7: 0.2 | M7: 0.41472 | N7: 2.411265432 | O7: X
A8: ABSEN | B8: N4 PLUS | C8: 288 | D8: 1440 | E8: 54 | F8: 10 | G8: 11.33858268 | H8: 56.69291339 | I8: 2.125984252 | J8: 22 | K8: 4 | L8: 0.2 | M8: 0.41472 | N8: 2.411265432 | O8: X
A9: ABSEN | B9: N5 PLUS | C9: 288 | D9: 1440 | E9: 54 | F9: 10 | G9: 11.33858268 | H9: 56.69291339 | I9: 2.125984252 | J9: 22 | K9: 5.14 | L9: 0.2 | M9: 0.41472 | N9: 2.411265432 | O9: X
A10: ABSEN | B10: HDV1.2 | C10: 400 | D10: 400 | E10: 65 | F10: 7 | G10: 15.7480315 | H10: 15.7480315 | I10: 2.559055118 | J10: 15.4 | K10: 1.25 | L10: 1 | M10: 0.16 | N10: 6.25 | O10: X
A11: ABSEN | B11: HDV1.6 | C11: 400 | D11: 400 | E11: 65 | F11: 6.7 | G11: 15.7480315 | H11: 15.7480315 | I11: 2.559055118 | J11: 14.74 | K11: 1.67 | L11: 1 | M11: 0.16 | N11: 6.25 | O11: X
A12: ABSEN | B12: HDV1.9 | C12: 400 | D12: 400 | E12: 65 | F12: 6.7 | G12: 15.7480315 | H12: 15.7480315 | I12: 2.559055118 | J12: 14.74 | K12: 1.92 | L12: 1 | M12: 0.16 | N12: 6.25 | O12: X
A13: ABSEN | B13: A1.2 | C13: 400 | D13: 300 | E13: 120 | F13: 7.2 | G13: 15.7480315 | H13: 11.81102362 | I13: 4.724409449 | J13: 15.84 | K13: 1.25 | L13: 1.333333333 | M13: 0.12 | N13: 8.333333333
A14: ABSEN | B14: A1.6 | C14: 400 | D14: 300 | E14: 120 | F14: 7.6 | G14: 15.7480315 | H14: 11.81102362 | I14: 4.724409449 | J14: 16.72 | K14: 1.6 | L14: 1.333333333 | M14: 0.12 | N14: 8.333333333
A15: ABSEN | B15: A1.9 | C15: 400 | D15: 300 | E15: 95 | F15: 6.7 | G15: 15.7480315 | H15: 11.81102362 | I15: 3.74015748 | J15: 14.74 | K15: 1.9 | L15: 1.333333333 | M15: 0.12 | N15: 8.333333333
A16: ABSEN | B16: A2712 | C16: 343 | D16: 610 | E16: 61 | F16: 8.5 | G16: 13.50393701 | H16: 24.01574803 | I16: 2.401574803 | J16: 18.7 | K16: 1.27 | L16: 0.562295082 | M16: 0.20923 | N16: 4.779429336
A17: ABSEN | B17: A2725 | C17: 343 | D17: 610 | E17: 60 | F17: 8 | G17: 13.50393701 | H17: 24.01574803 | I17: 2.362204724 | J17: 17.6 | K17: 2.54 | L17: 0.562295082 | M17: 0.20923 | N17: 4.779429336 | O17: X
A18: ABSEN | B18: A2719 | C18: 343 | D18: 610 | E18: 60 | F18: 8.5 | G18: 13.50393701 | H18: 24.01574803 | I18: 2.362204724 | J18: 18.7 | K18: 1.9 | L18: 0.562295082 | M18: 0.20923 | N18: 4.779429336 | O18: X
A19: ABSEN | B19: A2715 | C19: 343 | D19: 610 | E19: 60 | F19: 8.5 | G19: 13.50393701 | H19: =D19/25.4 -> 24.01574803 | I19: =E19/25.4 -> 2.362204724 | J19: 18.7 | K19: 1.58 | L19: 0.562295082 | M19: 0.20923 | N19: 4.779429336 | O19: X
A20: ABSEN | B20: M2.9 | C20: 500 | D20: 500 | E20: 95 | F20: 7.6 | G20: 19.68503937 | H20: 19.68503937 | I20: 3.74015748 | J20: 16.72 | K20: 2.97 | L20: 1 | M20: 0.25 | N20: 4 | O20: X
A21: ABSEN | B21: ACCLAIM 1.2 | C21: 343 | D21: 610 | E21: 61 | F21: 8.5 | G21: 13.50393701 | H21: 24.01574803 | I21: 2.401574803 | J21: 18.7 | K21: 1.27 | L21: 0.562295082 | M21: 0.20923 | N21: 4.779429336 | O21: X | Q21: TIL1XXAA, TIL1XXAP | R21: TILVABAA | T21: 226 | U21: =T21/25.4 -> 8.897637795 | V21: 510 | W21: =V21/25.4 -> 20.07874016 | X21: M8 | AI21: ROTATIONAL CLAMPS ON ALL SIDES INSTALLED WITHOUT LEDS TRIANGULAR ALIGNMENT PEGS AND PINS AT TOP TO ALIGN WITH BOTTOM OF NEXT PANEL
A22: ABSEN | B22: ACCLAIM 1.5 | C22: 343 | D22: 610 | E22: 61 | F22: 8.5 | G22: 13.50393701 | H22: 24.01574803 | I22: 2.401574803 | J22: 18.7 | K22: 1.58 | L22: 0.562295082 | M22: 0.20923 | N22: 4.779429336 | O22: X | Q22: TIL1XXAA, TIL1XXAP | R22: TILVABAA | T22: 226 | U22: =T22/25.4 -> 8.897637795 | V22: 510 | W22: =V22/25.4 -> 20.07874016 | X22: M8
A23: ABSEN | B23: ACCLAIM 1.9 | C23: 343 | D23: 610 | E23: 61 | F23: 8.5 | G23: 13.50393701 | H23: 24.01574803 | I23: 2.401574803 | J23: 18.7 | K23: 1.91 | L23: 0.562295082 | M23: 0.20923 | N23: 4.779429336 | O23: X | Q23: TIL1XXAA, TIL1XXAP | R23: TILVABAA | T23: 226 | U23: 8.897637795 | V23: 510 | W23: 20.07874016 | X23: M8
A24: ABSEN | B24: ACCLAIM 2.5 | C24: 343 | D24: 610 | E24: 61 | F24: 8 | G24: 13.50393701 | H24: 24.01574803 | I24: 2.401574803 | J24: 17.6 | K24: 2.54 | L24: 0.562295082 | M24: 0.20923 | N24: 4.779429336 | O24: X | Q24: TIL1XXAA, TIL1XXAP | R24: TILVABAA | T24: 226 | U24: 8.897637795 | V24: 510 | W24: 20.07874016 | X24: M8
A25: ABSEN | B25: ACCLAIM 3.8 | C25: 343 | D25: 610 | E25: 61 | F25: 8 | G25: 13.50393701 | H25: 24.01574803 | I25: 2.401574803 | J25: 17.6 | K25: 3.81 | L25: 0.562295082 | M25: 0.20923 | N25: 4.779429336 | O25: X | Q25: TIL1XXAA, TIL1XXAP | R25: TILVABAA | T25: 226 | U25: 8.897637795 | V25: 510 | W25: 20.07874016 | X25: M8
A26: ABSEN | B26: ACCLAIM PRO 1.2 | C26: 343 | D26: 610 | E26: 49 | F26: 6 | G26: 13.50393701 | H26: 24.01574803 | I26: 1.929133858 | J26: 13.2 | K26: 1.27 | L26: 0.562295082 | M26: 0.20923 | N26: 4.779429336 | O26: X | Q26: TIL1XXAP | R26: TILVAB1 | T26: 226 | U26: 8.897637795 | V26: 510 | W26: 20.07874016 | X26: M8
A27: ABSEN | B27: ACCLAIM PRO 1.5 | C27: 343 | D27: 610 | E27: 49 | F27: 6 | G27: 13.50393701 | H27: 24.01574803 | I27: 1.929133858 | J27: 13.2 | K27: 1.58 | L27: 0.562295082 | M27: 0.20923 | N27: 4.779429336 | O27: X | Q27: TIL1XXAP | R27: TILVAB1 | T27: 226 | U27: 8.897637795 | V27: 510 | W27: 20.07874016 | X27: M8
A28: ABSEN | B28: ACCLAIM PLUS 1.2 | C28: 343 | D28: 610 | E28: 49 | F28: 6 | G28: 13.50393701 | H28: 24.01574803 | I28: 1.929133858 | J28: 13.2 | K28: 1.27 | L28: 0.562295082 | M28: 0.20923 | N28: 4.779429336 | O28: X | Q28: TIL1XXAP | R28: TILVAB1 | T28: 226 | U28: 8.897637795 | V28: 510 | W28: 20.07874016 | X28: M8
A29: ABSEN | B29: ACCLAIM PLUS1.5 | C29: 343 | D29: 610 | E29: 49 | F29: 6 | G29: 13.50393701 | H29: 24.01574803 | I29: 1.929133858 | J29: 13.2 | K29: 1.58 | L29: 0.562295082 | M29: 0.20923 | N29: 4.779429336 | O29: X | Q29: TIL1XXAP | R29: TILVAB1 | T29: 226 | U29: 8.897637795 | V29: 510 | W29: 20.07874016 | X29: M8
A30: ABSEN | B30: CR1.2 | C30: 343 | D30: 610 | E30: 67 | F30: 6 | G30: 13.50393701 | H30: 24.01574803 | I30: 2.637795276 | J30: 13.2 | K30: 1.25 | L30: 0.562295082 | M30: 0.20923 | N30: 4.779429336
A31: ABSEN | B31: CR1.5 | C31: 343 | D31: 610 | E31: 67 | F31: 6 | G31: 13.50393701 | H31: 24.01574803 | I31: 2.637795276 | J31: 13.2 | K31: 1.58 | L31: 0.562295082 | M31: 0.20923 | N31: 4.779429336
A32: ABSEN | B32: CR1.9 | C32: 343 | D32: 610 | E32: 67 | F32: 6 | G32: 13.50393701 | H32: 24.01574803 | I32: 2.637795276 | J32: 13.2 | K32: 1.906 | L32: 0.562295082 | M32: 0.20923 | N32: 4.779429336
A34: AOTO | B34: CLD27ES0.7 | C34: 337.5 | D34: 600 | G34: =C34/25.4 -> 13.28740157 | H34: 23.62204724 | I34: 0 | J34: =F34*2.2 -> 0 | K34: 0.78 | L34: 0.5625 | M34: =C34*D34/1000000 -> 0.2025 | N34: 4.938271605
A35: AOTO | B35: CLD27ES0.9 | C35: 337.5 | D35: 600 | G35: 13.28740157 | H35: 23.62204724 | I35: 0 | J35: =F35*2.2 -> 0 | K35: 0.93 | L35: 0.5625 | M35: =C35*D35/1000000 -> 0.2025 | N35: 4.938271605
A36: AOTO | B36: CLD27ES1.2 | C36: 337.5 | D36: 600 | G36: 13.28740157 | H36: 23.62204724 | I36: 0 | J36: =F36*2.2 -> 0 | K36: 1.25 | L36: 0.5625 | M36: =C36*D36/1000000 -> 0.2025 | N36: 4.938271605
A37: AOTO | B37: CLD27ES1.5 | C37: 337.5 | D37: 600 | G37: 13.28740157 | H37: 23.62204724 | I37: 0 | J37: =F37*2.2 -> 0 | K37: 1.56 | L37: 0.5625 | M37: =C37*D37/1000000 -> 0.2025 | N37: 4.938271605
A39: BAKO | B39: BFP0.9SI | C39: 600 | D39: 337.5 | F39: 6 | G39: =C39/25.4 -> 23.62204724 | H39: 13.28740157 | I39: 0 | J39: =F39*2.2 -> 13.2 | K39: 0.937 | L39: 1.777777778 | M39: =C39*D39/1000000 -> 0.2025 | N39: 4.938271605
A40: BAKO | B40: BFP1.2SI | C40: 600 | D40: 337.5 | F40: 6 | G40: 23.62204724 | H40: 13.28740157 | I40: 0 | J40: =F40*2.2 -> 13.2 | K40: 1.25 | L40: 1.777777778 | M40: =C40*D40/1000000 -> 0.2025 | N40: 4.938271605
A41: BAKO | B41: BFP1.5SI | C41: 600 | D41: 337.5 | F41: 6 | G41: 23.62204724 | H41: 13.28740157 | I41: 0 | J41: =F41*2.2 -> 13.2 | K41: 1.56 | L41: 1.777777778 | M41: =C41*D41/1000000 -> 0.2025 | N41: 4.938271605
A42: BAKO | B42: BFP1.8SI | C42: 600 | D42: 337.5 | F42: 6 | G42: 23.62204724 | H42: 13.28740157 | I42: 0 | J42: =F42*2.2 -> 13.2 | K42: 1.87 | L42: 1.777777778 | M42: =C42*D42/1000000 -> 0.2025 | N42: 4.938271605
A43: BAKO | B43: BFP2.3SI | C43: 600 | D43: 337.5 | F43: 6 | G43: 23.62204724 | H43: 13.28740157 | I43: 0 | J43: =F43*2.2 -> 13.2 | K43: 2.34 | L43: 1.777777778 | M43: =C43*D43/1000000 -> 0.2025 | N43: 4.938271605
A45: BARCO | B45: UNI-SEE LCD | M45: =C45*D45/1000000 -> 0
A46: BARCO | B46: XT0.9 | C46: 343.08 | D46: 609.92 | E46: 71 | F46: 7.5 | G46: =C46/25.4 -> 13.50708661 | H46: 24.01259843 | I46: 2.795275591 | J46: =F46*2.2 -> 16.5 | K46: 0.95 | L46: =C46/D46 -> 0.5625 | M46: =C46*D46/1000000 -> 0.2092513536 | N46: 4.778941607 | O46: X | S46: UNILUMINS UPANELS | AD46: 640 X 360
A47: BARCO | B47: XT1.2 | C47: 343.08 | D47: 609.92 | E47: 71 | F47: 7.5 | G47: 13.50708661 | H47: 24.01259843 | I47: 2.795275591 | J47: =F47*2.2 -> 16.5 | K47: 1.27 | L47: =C47/D47 -> 0.5625 | M47: =C47*D47/1000000 -> 0.2092513536 | N47: 4.778941607 | O47: X | S47: UNILUMINS UPANELS | AD47: 480 X 270
A48: BARCO | B48: XT1.5 | C48: 343.08 | D48: 609.92 | E48: 71 | F48: 7.5 | G48: 13.50708661 | H48: 24.01259843 | I48: 2.795275591 | J48: =F48*2.2 -> 16.5 | K48: 1.58 | L48: =C48/D48 -> 0.5625 | M48: =C48*D48/1000000 -> 0.2092513536 | N48: 4.778941607 | O48: X | S48: UNILUMINS UPANELS | AD48: 384 X 216
A49: BARCO | B49: XT1.9 | C49: 343.08 | D49: 609.92 | E49: 71 | F49: 7.5 | G49: 13.50708661 | H49: 24.01259843 | I49: 2.795275591 | J49: =F49*2.2 -> 16.5 | K49: 1.91 | L49: =C49/D49 -> 0.5625 | M49: =C49*D49/1000000 -> 0.2092513536 | N49: 4.778941607 | O49: X | S49: UNILUMINS UPANELS | AD49: 320 X 180
A51: CHAINZONE/IMPOSA | B51: LPR-.9 | C51: 343.12 | D51: 610 | E51: 38.5 | F51: 7 | G51: =C51/25.4 -> 13.50866142 | H51: 24.01574803 | I51: 1.515748031 | J51: =F51*2.2 -> 15.4 | K51: 0.953 | L51: =C51/D51 -> 0.5624918033 | M51: =C51*D51/1000000 -> 0.2093032 | N51: 4.777757817 | O51: X
A52: CHAINZONE/IMPOSA | B52: LPR-1.2 | C52: 343.12 | D52: 610 | E52: 38.5 | F52: 7 | G52: 13.50866142 | H52: 24.01574803 | I52: 1.515748031 | J52: 15.4 | K52: 1.27 | L52: 0.5624918033 | M52: 0.2093032 | N52: 4.777757817 | O52: X
A53: CHAINZONE/IMPOSA | B53: LPR-1.5 | C53: 343.12 | D53: 610 | E53: 38.5 | F53: 7 | G53: 13.50866142 | H53: 24.01574803 | I53: 1.515748031 | J53: 15.4 | K53: 1.588 | L53: 0.5624918033 | M53: 0.2093032 | N53: 4.777757817 | O53: X
A54: CHAINZONE/IMPOSA | B54: LPR-1.9 | C54: 343.12 | D54: 610 | E54: 38.5 | F54: 7 | G54: 13.50866142 | H54: 24.01574803 | I54: 1.515748031 | J54: 15.4 | K54: 1.906 | L54: 0.5624918033 | M54: 0.2093032 | N54: 4.777757817 | O54: X
A55: CHAINZONE/IMPOSA | B55: LPR-2.5 | C55: 343.12 | D55: 610 | E55: 38.5 | F55: 7 | G55: 13.50866142 | H55: 24.01574803 | I55: 1.515748031 | J55: 15.4 | K55: 2.54 | L55: 0.5624918033 | M55: 0.2093032 | N55: 4.777757817 | O55: X
A56: CHAINZONE/IMPOSA | B56: LXL-1.9 | C56: 250 | D56: 1000 | E56: 39 | F56: 7.5 | G56: 9.842519685 | H56: 39.37007874 | I56: 1.535433071 | J56: 16.5 | K56: 1.9 | L56: 0.25 | M56: 0.25 | N56: 4 | O56: X
A57: CHAINZONE/IMPOSA | B57: LXL-2.6 | C57: 250 | D57: 1000 | E57: 39 | F57: 7.5 | G57: 9.842519685 | H57: 39.37007874 | I57: 1.535433071 | J57: 16.5 | K57: 2.6 | L57: 0.25 | M57: 0.25 | N57: 4 | O57: X
A58: CHAINZONE/IMPOSA | B58: LXL-3.9 | C58: 250 | D58: 1000 | E58: 39 | F58: 7.5 | G58: 9.842519685 | H58: 39.37007874 | I58: 1.535433071 | J58: 16.5 | K58: 3.9 | L58: 0.25 | M58: 0.25 | N58: 4 | O58: X
A59: CHAINZONE/IMPOSA | B59: LXR-1.9 | C59: 1000 | D59: 500 | E59: 90 | F59: 14 | G59: 39.37007874 | H59: 19.68503937 | I59: 3.543307087 | J59: 30.8 | K59: 1.9 | L59: 2 | M59: 0.5 | N59: 2 | O59: X
A60: CHAINZONE/IMPOSA | B60: LXR-2.6 | C60: 1000 | D60: 500 | E60: 90 | F60: 14 | G60: 39.37007874 | H60: 19.68503937 | I60: 3.543307087 | J60: 30.8 | K60: 2.6 | L60: 2 | M60: 0.5 | N60: 2 | O60: X
A61: CHAINZONE/IMPOSA | B61: LXR-3.9 | C61: 1000 | D61: 500 | E61: 90 | F61: 14 | G61: 39.37007874 | H61: 19.68503937 | I61: 3.543307087 | J61: 30.8 | K61: 3.9 | L61: 2 | M61: 0.5 | N61: 2 | O61: X
A63: CHRISTIE | B63: LED015-M | C63: 480 | D63: 480 | E63: 82.84 | F63: 11.5 | G63: =C63/25.4 -> 18.8976378 | H63: =D63/25.4 -> 18.8976378 | I63: =E63/25.4 -> 3.261417323 | J63: =F63*2.2 -> 25.3 | K63: 1.5 | L63: 1 | M63: =C63*D63/1000000 -> 0.2304 | N63: 4.340277778 | O63: X
A64: CHRISTIE | B64: LED019-M | C64: 480 | D64: 480 | E64: 86.89 | F64: 11.5 | G64: 18.8976378 | H64: 18.8976378 | I64: 3.420866142 | J64: 25.3 | K64: 1.9 | L64: 1 | M64: 0.2304 | N64: 4.340277778 | O64: X
A65: CHRISTIE | B65: LED025-M | C65: 480 | D65: 480 | E65: 88.54 | F65: 11.5 | G65: 18.8976378 | H65: 18.8976378 | I65: 3.485826772 | J65: 25.3 | K65: 2.5 | L65: 1 | M65: 0.2304 | N65: 4.340277778 | O65: X
A66: CHRISTIE | B66: LED030-M | C66: 480 | D66: 480 | E66: 86.04 | F66: 11.5 | G66: 18.8976378 | H66: 18.8976378 | I66: 3.387401575 | J66: 25.3 | K66: 3 | L66: 1 | M66: 0.2304 | N66: 4.340277778 | O66: X
A67: CHRISTIE | B67: LED040-M | C67: 480 | D67: 480 | E67: 86.04 | F67: 11.5 | G67: 18.8976378 | H67: 18.8976378 | I67: 3.387401575 | J67: 25.3 | K67: 4 | L67: 1 | M67: 0.2304 | N67: 4.340277778 | O67: X
A68: CHRISTIE | B68: LED 012-AL | C68: 345.6 | D68: 614.4 | E68: 94.3 | F68: 9 | G68: 13.60629921 | H68: 24.18897638 | I68: 3.712598425 | J68: 19.8 | K68: 1.28 | L68: 0.5625 | M68: 0.21233664 | N68: =1/M68 -> 4.709502797 | O68: X
A69: CHRISTIE | B69: LED012-AP | C69: 614.4 | D69: 345.6 | E69: 94.3 | F69: 9 | G69: 24.18897638 | H69: 13.60629921 | I69: 3.712598425 | J69: 19.8 | K69: 1.28 | L69: 1.777777778 | M69: 0.21233664 | N69: 4.709502797 | O69: X
A70: CHRISTIE | B70: LED016-AL | C70: 345.6 | D70: 614.4 | E70: 94.3 | F70: 9 | G70: 13.60629921 | H70: 24.18897638 | I70: 3.712598425 | J70: 19.8 | K70: 1.6 | L70: 0.5625 | M70: 0.21233664 | N70: 4.709502797 | O70: X
A71: CHRISTIE | B71: LED016-AP | C71: 614.4 | D71: 345.6 | E71: 94.3 | F71: 9 | G71: 24.18897638 | H71: 13.60629921 | I71: 3.712598425 | J71: 19.8 | K71: 1.6 | L71: 1.777777778 | M71: 0.21233664 | N71: 4.709502797 | O71: X
A72: CHRISTIE | B72: LED019-AL | C72: 345.6 | D72: 614.4 | E72: 94.3 | F72: 9 | G72: 13.60629921 | H72: 24.18897638 | I72: 3.712598425 | J72: 19.8 | K72: 1.92 | L72: 0.5625 | M72: 0.21233664 | N72: 4.709502797 | O72: X
A73: CHRISTIE | B73: LED019-AP | C73: 614.4 | D73: 345.6 | E73: 94.3 | F73: 9 | G73: 24.18897638 | H73: 13.60629921 | I73: 3.712598425 | J73: 19.8 | K73: 1.92 | L73: 1.777777778 | M73: 0.21233664 | N73: 4.709502797 | O73: X
A74: CHRISTIE | B74: LED025-AL | C74: 345.6 | D74: 614.4 | E74: 94.3 | F74: 9 | G74: 13.60629921 | H74: 24.18897638 | I74: 3.712598425 | J74: 19.8 | K74: 2.56 | L74: 0.5625 | M74: 0.21233664 | N74: 4.709502797 | O74: X
A75: CHRISTIE | B75: LED025-AP | C75: 614.4 | D75: 345.6 | E75: 94.3 | F75: 9 | G75: 24.18897638 | H75: 13.60629921 | I75: 3.712598425 | J75: 19.8 | K75: 2.56 | L75: 1.777777778 | M75: 0.21233664 | N75: 4.709502797 | O75: X
A76: CHRISTIE | B76: LED012-CI | C76: 337.5 | D76: 600 | E76: 97 | F76: 9.12 | G76: 13.28740157 | H76: 23.62204724 | I76: 3.818897638 | J76: 20.064 | K76: 1.25 | L76: 0.5625 | M76: 0.2025 | N76: 4.938271605 | O76: X
A77: CHRISTIE | B77: LED015-CI | C77: 337.5 | D77: 600 | E77: 97 | F77: 9.12 | G77: 13.28740157 | H77: 23.62204724 | I77: 3.818897638 | J77: 20.064 | K77: 1.5625 | L77: 0.5625 | M77: 0.2025 | N77: 4.938271605 | O77: X
A78: CHRISTIE | B78: LED018-CI | C78: 337.5 | D78: 600 | E78: 97 | F78: 9.12 | G78: 13.28740157 | H78: 23.62204724 | I78: 3.818897638 | J78: 20.064 | K78: 1.875 | L78: 0.5625 | M78: 0.2025 | N78: 4.938271605 | O78: X
A79: CHRISTIE | B79: LED025-CI | C79: 337.5 | D79: 600 | E79: 97 | F79: 9.12 | G79: 13.28740157 | H79: 23.62204724 | I79: 3.818897638 | J79: 20.064 | K79: 2.5 | L79: 0.5625 | M79: 0.2025 | N79: 4.938271605 | O79: X
A81: CLT | B81: H121S | C81: 600 | D81: 337.5 | E81: 85 | F81: 10 | G81: =C81/25.4 -> 23.62204724 | H81: 13.28740157 | I81: 3.346456693 | J81: =F81*2.2 -> 22 | K81: 1.25 | L81: 1.777777778 | M81: =C81*D81/1000000 -> 0.2025 | N81: 4.938271605 | O81: X
A82: CLT | B82: H151S | C82: 600 | D82: 337.5 | E82: 85 | F82: 9.8 | G82: 23.62204724 | H82: 13.28740157 | I82: 3.346456693 | J82: =F82*2.2 -> 21.56 | K82: 1.56 | L82: 1.777777778 | M82: =C82*D82/1000000 -> 0.2025 | N82: 4.938271605 | O82: X
A83: CLT | B83: H121Q | C83: 600 | D83: 337.5 | E83: 42 | F83: 7 | G83: 23.62204724 | H83: 13.28740157 | I83: 1.653543307 | J83: =F83*2.2 -> 15.4 | K83: 1.25 | L83: 1.777777778 | M83: =C83*D83/1000000 -> 0.2025 | N83: 4.938271605 | O83: X
A84: CLT | B84: H151Q | C84: 600 | D84: 337.5 | E84: 42 | F84: 7 | G84: 23.62204724 | H84: 13.28740157 | I84: 1.653543307 | J84: =F84*2.2 -> 15.4 | K84: 1.56 | L84: 1.777777778 | M84: =C84*D84/1000000 -> 0.2025 | N84: 4.938271605 | O84: X
A86: COLEDER | B86: ACE BLOCK A0.9 | C86: 600 | D86: 337.5 | E86: 88 | F86: 8.55 | G86: =C86/25.4 -> 23.62204724 | H86: 13.28740157 | I86: 3.464566929 | J86: =F86*2.2 -> 18.81 | K86: 0.9 | L86: =C86/D86 -> 1.777777778 | M86: =C86*D86/1000000 -> 0.2025 | N86: 4.938271605 | O86: X
A87: COLEDER | B87: ACE BLOCK A1.2 | C87: 600 | D87: 337.5 | E87: 88 | F87: 8.55 | G87: 23.62204724 | H87: 13.28740157 | I87: 3.464566929 | J87: =F87*2.2 -> 18.81 | K87: 1.25 | L87: =C87/D87 -> 1.777777778 | M87: =C87*D87/1000000 -> 0.2025 | N87: 4.938271605 | O87: X
A88: COLEDER | B88: ACE BLOCK A1.5 | C88: 600 | D88: 337.5 | E88: 88 | F88: 8.5 | G88: 23.62204724 | H88: 13.28740157 | I88: 3.464566929 | J88: =F88*2.2 -> 18.7 | K88: 1.56 | L88: =C88/D88 -> 1.777777778 | M88: =C88*D88/1000000 -> 0.2025 | N88: 4.938271605 | O88: X
A89: COLEDER | B89: ACE BLOCK A1.8 | C89: 600 | D89: 337.5 | E89: 88 | F89: 8.35 | G89: 23.62204724 | H89: 13.28740157 | I89: 3.464566929 | J89: =F89*2.2 -> 18.37 | K89: 1.87 | L89: =C89/D89 -> 1.777777778 | M89: =C89*D89/1000000 -> 0.2025 | N89: 4.938271605 | O89: X
A90: COLEDER | B90: ACE BLOCK A2.5 | C90: 600 | D90: 337.5 | E90: 88 | F90: 8.25 | G90: 23.62204724 | H90: 13.28740157 | I90: 3.464566929 | J90: =F90*2.2 -> 18.15 | K90: 2.5 | L90: =C90/D90 -> 1.777777778 | M90: =C90*D90/1000000 -> 0.2025 | N90: 4.938271605 | O90: X
A92: DELTA | B92: FE-12 | C92: 342 | D92: 608 | E92: 62 | F92: 8 | G92: =C92/25.4 -> 13.46456693 | H92: 23.93700787 | I92: 2.440944882 | J92: =F92*2.2 -> 17.6 | K92: 1.27 | L92: =C92/D92 -> 0.5625 | M92: =C92*D92/1000000 -> 0.207936 | N92: 4.809172053 | O92: X
A93: DELTA | B93: FE-15 | C93: 342 | D93: 608 | E93: 62 | F93: 8 | G93: 13.46456693 | H93: 23.93700787 | I93: 2.440944882 | J93: =F93*2.2 -> 17.6 | K93: 1.58 | L93: 0.5625 | M93: =C93*D93/1000000 -> 0.207936 | N93: 4.809172053 | O93: X | AD93: 384 X 216
A94: DELTA | B94: FE-19 | C94: 342 | D94: 608 | E94: 62 | F94: 8 | G94: 13.46456693 | H94: 23.93700787 | I94: 2.440944882 | J94: =F94*2.2 -> 17.6 | K94: 1.9 | L94: 0.5625 | M94: =C94*D94/1000000 -> 0.207936 | N94: 4.809172053 | O94: X | AD94: 320 X 180
A95: DELTA | B95: FE-25 | C95: 342 | D95: 608 | E95: 62 | F95: 8 | G95: 13.46456693 | H95: 23.93700787 | I95: 2.440944882 | J95: =F95*2.2 -> 17.6 | K95: 2.53 | L95: 0.5625 | M95: =C95*D95/1000000 -> 0.207936 | N95: 4.809172053 | O95: X | AD95: 240 X 136
A97: DIGITAL PROJECTION | B97: RADIANCE LED 1.5 | C97: 342 | D97: 608 | E97: 62 | F97: 8.05 | G97: =C97/25.4 -> 13.46456693 | H97: 23.93700787 | I97: 2.440944882 | J97: =F97*2.2 -> 17.71 | K97: 1.58 | L97: 0.5625 | M97: =C97*D97/1000000 -> 0.207936 | N97: 4.809172053 | O97: X
A98: DIGITAL PROJECTION | B98: RADIANCE LED 1.9 | C98: 342 | D98: 608 | E98: 62 | F98: 8.05 | G98: 13.46456693 | H98: 23.93700787 | I98: 2.440944882 | J98: =F98*2.2 -> 17.71 | K98: 1.9 | L98: 0.5625 | M98: =C98*D98/1000000 -> 0.207936 | N98: 4.809172053 | O98: X
A99: DIGITAL PROJECTION | B99: RADIANCE LED 2.5 | C99: 342 | D99: 608 | E99: 62 | F99: 8.05 | G99: 13.46456693 | H99: 23.93700787 | I99: 2.440944882 | J99: =F99*2.2 -> 17.71 | K99: 2.53 | L99: 0.5625 | M99: =C99*D99/1000000 -> 0.207936 | N99: 4.809172053 | O99: X
A101: DISPLAY LAMP | B101: HN1.2X | C101: 600 | D101: 337.5 | E101: 60 | F101: 5.85 | G101: =C101/25.4 -> 23.62204724 | H101: 13.28740157 | I101: 2.362204724 | J101: =F101*2.2 -> 12.87 | K101: 1.25 | L101: 1.777777778 | M101: =C101*D101/1000000 -> 0.2025 | N101: 4.938271605 | O101: X | S101: PART OF THE UNILUMIN GROUP
A102: DISPLAY LAMP | B102: HN1.5X | C102: 600 | D102: 337.5 | E102: 60 | F102: 5.85 | G102: 23.62204724 | H102: 13.28740157 | I102: 2.362204724 | J102: =F102*2.2 -> 12.87 | K102: 1.56 | L102: 1.777777778 | M102: =C102*D102/1000000 -> 0.2025 | N102: 4.938271605 | O102: X
A103: DISPLAY LAMP | B103: HN1.8X | C103: 600 | D103: 337.5 | E103: 60 | F103: 5.85 | G103: 23.62204724 | H103: 13.28740157 | I103: 2.362204724 | J103: =F103*2.2 -> 12.87 | K103: 1.87 | L103: 1.777777778 | M103: =C103*D103/1000000 -> 0.2025 | N103: 4.938271605 | O103: X
A104: DISPLAY LAMP | B104: HN2.5X | C104: 600 | D104: 337.5 | E104: 60 | F104: 5.85 | G104: 23.62204724 | H104: 13.28740157 | I104: 2.362204724 | J104: =F104*2.2 -> 12.87 | K104: 2.5 | L104: 1.777777778 | M104: =C104*D104/1000000 -> 0.2025 | N104: 4.938271605 | O104: X
A106: DGX | B106: DL 1.5 | C106: 384 | D106: 288 | E106: 70 | F106: 3 | G106: =C106/25.4 -> 15.11811024 | H106: 11.33858268 | I106: 2.755905512 | J106: =F106*2.2 -> 6.6 | K106: 1.5 | L106: =C106/D106 -> 1.333333333 | M106: =C106*D106/1000000 -> 0.110592 | N106: 9.04224537 | O106: X
A107: DGX | B107: DL1.6 | C107: 384 | D107: 288 | E107: 70 | F107: 3 | G107: 15.11811024 | H107: 11.33858268 | I107: 2.755905512 | J107: 6.6 | K107: 1.6 | L107: 1.333333333 | M107: 0.110592 | N107: 9.04224537 | O107: X
A108: DGX | B108: DL1.8 | C108: 384 | D108: 288 | E108: 70 | F108: 3 | G108: 15.11811024 | H108: 11.33858268 | I108: 2.755905512 | J108: 6.6 | K108: 1.846 | L108: 1.333333333 | M108: 0.110592 | N108: 9.04224537 | O108: X
A109: DGX | B109: DU1.2 | C109: 609.6 | D109: 342.9 | E109: 37.5 | F109: 7.7 | G109: 24 | H109: 13.5 | I109: 1.476377953 | J109: 16.94 | K109: 1.27 | L109: 1.777777778 | M109: 0.20903184 | N109: 4.783960185 | O109: X
A110: DGX | B110: DU1.5 | C110: 609.6 | D110: 342.9 | E110: 37.5 | F110: 7.7 | G110: 24 | H110: 13.5 | I110: 1.476377953 | J110: 16.94 | K110: 1.5875 | L110: 1.777777778 | M110: 0.20903184 | N110: 4.783960185 | O110: X
A111: DGX | B111: DU1.9 | C111: 609.6 | D111: 342.9 | E111: 37.5 | F111: 7.7 | G111: 24 | H111: 13.5 | I111: 1.476377953 | J111: 16.94 | K111: 1.905 | L111: 1.777777778 | M111: 0.20903184 | N111: 4.783960185 | O111: X
A113: ESDLUMEN | B113: EHP 1.2 | C113: 342 | D113: 608 | E113: 45 | F113: 6.5 | G113: =C113/25.4 -> 13.46456693 | H113: 23.93700787 | I113: 1.771653543 | J113: =F113*2.2 -> 14.3 | K113: 1.26 | L113: 0.5625 | M113: =C113*D113/1000000 -> 0.207936 | N113: 4.809172053 | O113: X
A114: ESDLUMEN | B114: EHP1.5 | C114: 342 | D114: 608 | E114: 45 | F114: 6.5 | G114: 13.46456693 | H114: 23.93700787 | I114: 1.771653543 | J114: =F114*2.2 -> 14.3 | K114: 1.5 | L114: 0.5625 | M114: =C114*D114/1000000 -> 0.207936 | N114: 4.809172053 | O114: X
A115: ESDLUMEN | B115: EHP1.9 | C115: 342 | D115: 608 | E115: 45 | F115: 6.5 | G115: 13.46456693 | H115: 23.93700787 | I115: 1.771653543 | J115: =F115*2.2 -> 14.3 | K115: 1.9 | L115: 0.5625 | M115: =C115*D115/1000000 -> 0.207936 | N115: 4.809172053 | O115: X
A116: ESDLUMEN | B116: EHP2.6 | C116: 342 | D116: 608 | E116: 45 | F116: 6.5 | G116: 13.46456693 | H116: 23.93700787 | I116: 1.771653543 | J116: =F116*2.2 -> 14.3 | K116: 2.6 | L116: 0.5625 | M116: =C116*D116/1000000 -> 0.207936 | N116: 4.809172053 | O116: X
A118: GLIC | B118: P1.25 | C118: 338 | D118: 600 | E118: 75 | F118: 6.82 | G118: =C118/25.4 -> 13.30708661 | H118: 23.62204724 | I118: 2.952755906 | J118: =F118*2.2 -> 15.004 | K118: 1.25 | L118: =C118/D118 -> 0.5633333333 | M118: =C118*D118/1000000 -> 0.2028 | N118: 4.930966469
A119: GLIC | B119: P1.56 | C119: 338 | D119: 600 | E119: 75 | F119: 6.82 | G119: 13.30708661 | H119: 23.62204724 | I119: 2.952755906 | J119: 15.004 | K119: 1.56 | L119: 0.5633333333 | M119: 0.2028 | N119: 4.930966469
A120: GLIC | B120: P2.6 | C120: 500 | D120: 500 | E120: 80 | F120: 8.2 | G120: 19.68503937 | H120: 19.68503937 | I120: 3.149606299 | J120: 18.04 | K120: 2.6 | L120: 1 | M120: 0.25 | N120: 4
A121: GLIC | B121: P3.1 | C121: 500 | D121: 500 | E121: 80 | F121: 8.2 | G121: 19.68503937 | H121: 19.68503937 | I121: 3.149606299 | J121: 18.04 | K121: 3.1 | L121: 1 | M121: 0.25 | N121: 4
A122: GLIC | B122: P3.75 | C122: 480 | D122: 480 | E122: 80 | F122: 8.2 | G122: 18.8976378 | H122: 18.8976378 | I122: 3.149606299 | J122: 18.04 | K122: 3.75 | L122: 1 | M122: 0.2304 | N122: 4.340277778
A123: GLIC | B123: P3.9 | C123: 500 | D123: 500 | E123: 80 | F123: 8.2 | G123: 19.68503937 | H123: 19.68503937 | I123: 3.149606299 | J123: 18.04 | K123: 3.9 | L123: 1 | M123: 0.25 | N123: 4
A124: GLIC | B124: P4 | C124: 480 | D124: 480 | E124: 80 | F124: 8.2 | G124: 18.8976378 | H124: 18.8976378 | I124: 3.149606299 | J124: 18.04 | K124: 4 | L124: 1 | M124: 0.2304 | N124: 4.340277778
A125: GLIC | B125: P6 | C125: 576 | D125: 576 | E125: 90 | F125: 13.64 | G125: 22.67716535 | H125: 22.67716535 | I125: 3.543307087 | J125: 30.008 | K125: 6 | L125: 1 | M125: 0.331776 | N125: 3.01408179
A127: INFI LED | B127: IL-FISS-IRHD1.25 | C127: 450 | D127: 400 | E127: 99 | F127: 9.6 | G127: =C127/25.4 -> 17.71653543 | H127: 15.7480315 | I127: 3.897637795 | J127: =F127*2.2 -> 21.12 | K127: 1.25 | L127: =C127/D127 -> 1.125 | M127: =C127*D127/1000000 -> 0.18 | N127: 5.555555556
A128: INFI LED | B128: IL-FISS-IRHD1.56 | C128: 450 | D128: 400 | E128: 99 | F128: 9.6 | G128: 17.71653543 | H128: 15.7480315 | I128: 3.897637795 | J128: =F128*2.2 -> 21.12 | K128: 1.56 | L128: =C128/D128 -> 1.125 | M128: =C128*D128/1000000 -> 0.18 | N128: 5.555555556
A130: LEYARD/PLANAR | B130: CLA1.5D | C130: 250 | D130: 250 | E130: 58 | F130: 2.5 | G130: =C130/25.4 -> 9.842519685 | H130: 9.842519685 | I130: 2.283464567 | J130: =F130*2.2 -> 5.5 | K130: 1.5 | L130: 1 | M130: =C130*D130/1000000 -> 0.0625 | N130: 16
A131: LEYARD/PLANAR | B131: DL2-1.5 | C131: 337.5 | D131: 600 | E131: 95 | F131: 6.6 | G131: 13.28740157 | H131: 23.62204724 | I131: 3.74015748 | J131: 14.52 | K131: 1.5 | L131: 0.5625 | M131: 0.2025 | N131: 4.938271605
A132: LEYARD/PLANAR | B132: DL2-1.8 | C132: 337.5 | D132: 600 | E132: 95 | F132: 6.6 | G132: 13.28740157 | H132: 23.62204724 | I132: 3.74015748 | J132: 14.52 | K132: 1.875 | L132: 0.5625 | M132: 0.2025 | N132: =1/M132 -> 4.938271605
A133: LEYARD/PLANAR | B133: FXI-1.5 | C133: 500 | D133: 500 | E133: 80 | F133: 9.5 | G133: 19.68503937 | H133: 19.68503937 | I133: 3.149606299 | J133: 20.9 | K133: 1.562 | L133: 1 | M133: 0.25 | N133: 4 | O133: X
A134: LEYARD/PLANAR | B134: FXI-1.9 | C134: 500 | D134: 500 | E134: 80 | F134: 9.5 | G134: 19.68503937 | H134: 19.68503937 | I134: 3.149606299 | J134: 20.9 | K134: 1.953 | L134: 1 | M134: 0.25 | N134: 4 | O134: X
A135: LEYARD/PLANAR | B135: FXI-2.6 | C135: 500 | D135: 500 | E135: 80 | F135: 9.5 | G135: 19.68503937 | H135: 19.68503937 | I135: 3.149606299 | J135: 20.9 | K135: 2.604 | L135: 1 | M135: 0.25 | N135: 4 | O135: X
A136: LEYARD/PLANAR | B136: TWA.9 | C136: 675 | D136: 1200 | E136: 95.5 | F136: 30 | G136: 26.57480315 | H136: 47.24409449 | I136: 3.75984252 | J136: 66 | K136: 0.9375 | L136: 0.5625 | M136: 0.81 | N136: 1.234567901 | P136: X
A137: LEYARD/PLANAR | B137: TWA1.25 | C137: 675 | D137: 1200 | E137: 95.5 | F137: 30 | G137: 26.57480315 | H137: 47.24409449 | I137: 3.75984252 | J137: 66 | K137: 1.25 | L137: 0.5625 | M137: 0.81 | N137: 1.234567901 | P137: X
A138: LEYARD/PLANAR | B138: TWA1.49 | C138: 675 | D138: 1200 | E138: 95.5 | F138: 30 | G138: 26.57480315 | H138: 47.24409449 | I138: 3.75984252 | J138: 66 | K138: 1.49 | L138: 0.5625 | M138: 0.81 | N138: 1.234567901 | P138: X | AD138: 805 X 452 | AF138: 19643.71
A139: LEYARD/PLANAR | B139: TWA1.875 | C139: 675 | D139: 1200 | E139: 95.5 | F139: 30 | G139: 26.57480315 | H139: 47.24409449 | I139: 3.75984252 | J139: 66 | K139: 1.875 | L139: 0.5625 | M139: 0.81 | N139: 1.234567901 | P139: X
A140: LEYARD/PLANAR | B140: TVF1.5 | C140: 340.2 | D140: 604.8 | E140: 72.5 | F140: 5.2 | G140: 13.39370079 | H140: 23.81102362 | I140: 2.854330709 | J140: 11.44 | K140: 1.575 | L140: 0.5625 | M140: 0.20575296 | N140: 4.860197394 | O140: X | Q140: TIL1XXPT | R140: TILVABPT | T140: 300.2 | U140: =T140/25.4 -> 11.81889764 | V140: 564.8 | W140: =V140/25.4 -> 22.23622047 | X140: M5
A141: LEYARD/PLANAR | B141: TVF1.8 | C141: 340.2 | D141: 604.8 | E141: 72.5 | F141: 5.2 | G141: 13.39370079 | H141: 23.81102362 | I141: 2.854330709 | J141: 11.44 | K141: 1.89 | L141: 0.5625 | M141: 0.20575296 | N141: 4.860197394 | O141: X | Q141: TIL1XXPT | R141: TILVABPT | T141: 300.2 | U141: 11.81889764 | V141: 564.8 | W141: 22.23622047 | X141: M5
A142: LEYARD/PLANAR | B142: TVF2.5 | C142: 340.2 | D142: 604.8 | E142: 72.5 | F142: 5.2 | G142: 13.39370079 | H142: 23.81102362 | I142: 2.854330709 | J142: 11.44 | K142: 2.52 | L142: 0.5625 | M142: 0.20575296 | N142: 4.860197394 | O142: X | Q142: TIL1XXPT | R142: TILVABPT | T142: 300.2 | U142: 11.81889764 | V142: 564.8 | W142: 22.23622047 | X142: M5
A143: LEYARD/PLANAR | B143: TWS0.9 | C143: 337.5 | D143: 600 | E143: 95 | F143: 4.7 | G143: 13.28740157 | H143: 23.62204724 | I143: 3.74015748 | J143: 10.34 | K143: 0.9375 | L143: 0.5625 | M143: 0.2025 | N143: 4.938271605 | T143: 295.5 | U143: 11.63385827 | V143: 558 | W143: 21.96850394 | X143: M6
A144: LEYARD/PLANAR | B144: TWS1.2 | C144: 337.5 | D144: 600 | E144: 95 | F144: 4.7 | G144: 13.28740157 | H144: 23.62204724 | I144: 3.74015748 | J144: 10.34 | K144: 1.25 | L144: 0.5625 | M144: 0.2025 | N144: 4.938271605 | T144: 295.5 | U144: 11.63385827 | V144: 558 | W144: 21.96850394 | X144: M6
A145: LEYARD/PLANAR | B145: TWS1.5 | C145: 337.5 | D145: 600 | E145: 95 | F145: 4.7 | G145: 13.28740157 | H145: 23.62204724 | I145: 3.74015748 | J145: 10.34 | K145: 1.5625 | L145: 0.5625 | M145: 0.2025 | N145: 4.938271605 | T145: 295.5 | U145: 11.63385827 | V145: 558 | W145: 21.96850394 | X145: M6
A146: LEYARD/PLANAR | B146: TWS1.8 | C146: 337.5 | D146: 600 | E146: 95 | F146: 4.7 | G146: 13.28740157 | H146: 23.62204724 | I146: 3.74015748 | J146: 10.34 | K146: 1.875 | L146: 0.5625 | M146: 0.2025 | N146: 4.938271605 | T146: 295.5 | U146: 11.63385827 | V146: 558 | W146: 21.96850394 | X146: M6
A148: LG | B148: LAS012DB2-F | C148: 340.2 | D148: 604.8 | E148: 72.5 | F148: 5.356 | G148: 13.39370079 | H148: 23.81102362 | I148: 2.854330709 | J148: 11.7832 | K148: 1.26 | L148: 0.5625 | M148: =C148*D148/1000000 -> 0.20575296 | N148: 4.860197394 | O148: X | Q148: TIL1XXPT | R148: TILVABPT | S148: LEYARD TVF SERIES | T148: 300.2 | U148: =T148/25.4 -> 11.81889764 | V148: 564.8 | W148: =V148/25.4 -> 22.23622047 | X148: M5 | AD148: 480 X 270
A149: LG | B149: LAS012DB4-F | C149: 340.2 | D149: 604.8 | E149: 72.5 | F149: 5.356 | G149: 13.39370079 | H149: 23.81102362 | I149: 2.854330709 | J149: 11.7832 | K149: 1.26 | L149: 0.5625 | M149: 0.20575296 | N149: 4.860197394 | O149: X | Q149: TIL1XXPT | R149: TILVABPT | S149: LEYARD TVF SERIES | T149: 300.2 | U149: =T149/25.4 -> 11.81889764 | V149: 564.8 | W149: =V149/25.4 -> 22.23622047 | X149: M5 | AD149: 480 X 270
A150: LG | B150: LAS012DB7-F | C150: 340.2 | D150: 604.8 | E150: 72.5 | F150: 5.356 | G150: 13.39370079 | H150: 23.81102362 | I150: 2.854330709 | J150: 11.7832 | K150: 1.26 | L150: 0.5625 | M150: 0.20575296 | N150: 4.860197394 | O150: X | Q150: TIL1XXPT | R150: TILVABPT | S150: LEYARD TVF SERIES | T150: 300.2 | U150: =T150/25.4 -> 11.81889764 | V150: 564.8 | W150: =V150/25.4 -> 22.23622047 | X150: M5 | AD150: 480 X 270
A151: LG | B151: LAS014DB2-F | C151: 340.2 | D151: 604.8 | E151: 72.5 | F151: 5.356 | G151: 13.39370079 | H151: 23.81102362 | I151: 2.854330709 | J151: 11.7832 | K151: 1.454 | L151: 0.5625 | M151: 0.20575296 | N151: 4.860197394 | O151: X | Q151: TIL1XXPT | R151: TILVABPT | S151: LEYARD TVF SERIES | T151: 300.2 | U151: =T151/25.4 -> 11.81889764 | V151: 564.8 | W151: =V151/25.4 -> 22.23622047 | X151: M5 | AD151: 416 X 234
A152: LG | B152: LAS014DB4-F | C152: 340.2 | D152: 604.8 | E152: 72.5 | F152: 5.356 | G152: 13.39370079 | H152: 23.81102362 | I152: 2.854330709 | J152: 11.7832 | K152: 1.454 | L152: 0.5625 | M152: 0.20575296 | N152: 4.860197394 | O152: X | Q152: TIL1XXPT | R152: TILVABPT | S152: LEYARD TVF SERIES | T152: 300.2 | U152: 11.81889764 | V152: 564.8 | W152: 22.23622047 | X152: M5 | AD152: 416 X 234
A153: LG | B153: LAS014DB7-F | C153: 340.2 | D153: 604.8 | E153: 72.5 | F153: 5.356 | G153: 13.39370079 | H153: 23.81102362 | I153: 2.854330709 | J153: 11.7832 | K153: 1.454 | L153: 0.5625 | M153: 0.20575296 | N153: 4.860197394 | O153: X | Q153: TIL1XXPT | R153: TILVABPT | S153: LEYARD TVF SERIES | T153: 300.2 | U153: 11.81889764 | V153: 564.8 | W153: 22.23622047 | X153: M5 | AD153: 416 X 234
A154: LG | B154: LAS015DB2-F | C154: 340.2 | D154: 604.8 | E154: 72.5 | F154: 5.356 | G154: 13.39370079 | H154: 23.81102362 | I154: 2.854330709 | J154: 11.7832 | K154: 1.575 | L154: 0.5625 | M154: 0.20575296 | N154: 4.860197394 | O154: X | Q154: TIL1XXPT | R154: TILVABPT | S154: LEYARD TVF SERIES | T154: 300.2 | U154: 11.81889764 | V154: 564.8 | W154: 22.23622047 | X154: M5 | AD154: 384 X 216
A155: LG | B155: LAS015DB4-F | C155: 340.2 | D155: 604.8 | E155: 72.5 | F155: 5.356 | G155: 13.39370079 | H155: 23.81102362 | I155: 2.854330709 | J155: 11.7832 | K155: 1.575 | L155: 0.5625 | M155: 0.20575296 | N155: 4.860197394 | O155: X | Q155: TIL1XXPT | R155: TILVABPT | S155: LEYARD TVF SERIES | T155: 300.2 | U155: 11.81889764 | V155: 564.8 | W155: 22.23622047 | X155: M5 | AD155: 384 X 216
A156: LG | B156: LAS015DB7-F | C156: 340.2 | D156: 604.8 | E156: 72.5 | F156: 5.356 | G156: 13.39370079 | H156: 23.81102362 | I156: 2.854330709 | J156: 11.7832 | K156: 1.575 | L156: 0.5625 | M156: 0.20575296 | N156: 4.860197394 | O156: X | Q156: TIL1XXPT | R156: TILVABPT | S156: LEYARD TVF SERIES | T156: 300.2 | U156: 11.81889764 | V156: 564.8 | W156: 22.23622047 | X156: M5 | AD156: 384 X 216
A157: LG | B157: LAS018DB2-F | C157: 340.2 | D157: 604.8 | E157: 72.5 | F157: 5.356 | G157: 13.39370079 | H157: 23.81102362 | I157: 2.854330709 | J157: 11.7832 | K157: 1.89 | L157: 0.5625 | M157: 0.20575296 | N157: 4.860197394 | O157: X | Q157: TIL1XXPT | R157: TILVABPT | S157: LEYARD TVF SERIES | T157: 300.2 | U157: 11.81889764 | V157: 564.8 | W157: 22.23622047 | X157: M5 | AD157: 320 X 180
A158: LG | B158: LAS018DB4-F | C158: 340.2 | D158: 604.8 | E158: 72.5 | F158: 5.356 | G158: 13.39370079 | H158: 23.81102362 | I158: 2.854330709 | J158: 11.7832 | K158: 1.89 | L158: 0.5625 | M158: 0.20575296 | N158: 4.860197394 | O158: X | Q158: TIL1XXPT | R158: TILVABPT | S158: LEYARD TVF SERIES | T158: 300.2 | U158: 11.81889764 | V158: 564.8 | W158: 22.23622047 | X158: M5 | AD158: 320 X 180
A159: LG | B159: LAS018DB7-F | C159: 340.2 | D159: 604.8 | E159: 72.5 | F159: 5.356 | G159: 13.39370079 | H159: 23.81102362 | I159: 2.854330709 | J159: 11.7832 | K159: 1.89 | L159: 0.5625 | M159: 0.20575296 | N159: 4.860197394 | O159: X | Q159: TIL1XXPT | R159: TILVABPT | S159: LEYARD TVF SERIES | T159: 300.2 | U159: 11.81889764 | V159: 564.8 | W159: 22.23622047 | X159: M5 | AD159: 320 X 180
A160: LG | B160: LAS025DB2-F | C160: 340.2 | D160: 604.8 | E160: 72.5 | F160: 5.356 | G160: 13.39370079 | H160: 23.81102362 | I160: 2.854330709 | J160: 11.7832 | K160: 2.5 | L160: 0.5625 | M160: 0.20575296 | N160: 4.860197394 | O160: X | Q160: TIL1XXPT | R160: TILVABPT | S160: LEYARD TVF SERIES | T160: 300.2 | U160: 11.81889764 | V160: 564.8 | W160: 22.23622047 | X160: M5 | AD160: 240 X 136
A161: LG | B161: LAS025DB4-F | C161: 340.2 | D161: 604.8 | E161: 72.5 | F161: 5.356 | G161: 13.39370079 | H161: 23.81102362 | I161: 2.854330709 | J161: 11.7832 | K161: 2.5 | L161: 0.5625 | M161: 0.20575296 | N161: 4.860197394 | O161: X | Q161: TIL1XXPT | R161: TILVABPT | S161: LEYARD TVF SERIES | T161: 300.2 | U161: 11.81889764 | V161: 564.8 | W161: 22.23622047 | X161: M5 | AD161: 240 X 136
A162: LG | B162: LAS025DB7-F | C162: 340.2 | D162: 604.8 | E162: 72.5 | F162: 5.356 | G162: 13.39370079 | H162: 23.81102362 | I162: 2.854330709 | J162: 11.7832 | K162: 2.5 | L162: 0.5625 | M162: 0.20575296 | N162: 4.860197394 | O162: X | Q162: TIL1XXPT | R162: TILVABPT | S162: LEYARD TVF SERIES | T162: 300.2 | U162: 11.81889764 | V162: 564.8 | W162: 22.23622047 | X162: M5 | AD162: 240 X 136
A163: LG | B163: LAE029DD3E | C163: 1000 | D163: 500 | E163: 68 | F163: 15.5 | G163: 39.37007874 | H163: 19.68503937 | I163: 2.677165354 | J163: 34.1 | K163: 2.97 | L163: 2 | M163: 0.5 | N163: 2 | O163: X | U163: 0 | W163: 0
A164: LG | B164: LAE029DD4E | C164: 1000 | D164: 500 | E164: 68 | F164: 15.5 | G164: 39.37007874 | H164: 19.68503937 | I164: 2.677165354 | J164: 34.1 | K164: 2.97 | L164: 2 | M164: 0.5 | N164: 2 | O164: X | U164: 0 | W164: 0
A165: LG | B165: LAE039DD3 | C165: 1000 | D165: 500 | E165: 68 | F165: 12.5 | G165: 39.37007874 | H165: 19.68503937 | I165: 2.677165354 | J165: 27.5 | K165: 3.91 | L165: 2 | M165: 0.5 | N165: 2 | O165: X | U165: 0 | W165: 0
A166: LG | B166: LAE039DD4 | C166: 1000 | D166: 500 | E166: 68 | F166: 12.5 | G166: 39.37007874 | H166: 19.68503937 | I166: 2.677165354 | J166: 27.5 | K166: 3.91 | L166: 2 | M166: 0.5 | N166: 2 | O166: X | U166: 0 | W166: 0
A167: LG | B167: LAE029DD3DE | C167: 500 | D167: 500 | E167: 68 | F167: 10 | G167: 19.68503937 | H167: 19.68503937 | I167: 2.677165354 | J167: 22 | K167: 2.97 | L167: 1 | M167: 0.25 | N167: 4 | O167: X | U167: 0 | W167: 0
A168: LG | B168: LAE029DD4DE | C168: 500 | D168: 500 | E168: 68 | F168: 10 | G168: 19.68503937 | H168: 19.68503937 | I168: 2.677165354 | J168: 22 | K168: 2.97 | L168: 1 | M168: 0.25 | N168: 4 | O168: X | U168: 0 | W168: 0
A169: LG | B169: LAE039DD3D | C169: 500 | D169: 500 | E169: 68 | F169: 8.2 | G169: 19.68503937 | H169: 19.68503937 | I169: 2.677165354 | J169: 18.04 | K169: 3.91 | L169: 1 | M169: 0.25 | N169: 4 | O169: X | U169: 0 | W169: 0
A170: LG | B170: LAE039DD4D | C170: 500 | D170: 500 | E170: 68 | F170: 8.2 | G170: 19.68503937 | H170: 19.68503937 | I170: 2.677165354 | J170: 18.04 | K170: 3.91 | L170: 1 | M170: 0.25 | N170: 4 | O170: X | U170: 0 | W170: 0
A171: LG | B171: LAS025DB9-V | C171: 500 | D171: 500 | E171: 78.8 | F171: 7 | G171: 19.68503937 | H171: 19.68503937 | I171: 3.102362205 | J171: 15.4 | K171: 2.5 | L171: 1 | M171: 0.25 | N171: 4 | O171: X | T171: 440 | U171: 17.32283465 | V171: 440 | W171: 17.32283465
A172: LG | B172: LAS039DB9-V | C172: 500 | D172: 500 | E172: 78.8 | F172: 7 | G172: 19.68503937 | H172: 19.68503937 | I172: 3.102362205 | J172: 15.4 | K172: 3.9 | L172: 1 | M172: 0.25 | N172: 4 | O172: X | T172: 440 | U172: 17.32283465 | V172: 440 | W172: 17.32283465
A173: LG | B173: LAS025DB7-V | C173: 500 | D173: 500 | E173: 78.8 | F173: 7 | G173: 19.68503937 | H173: 19.68503937 | I173: 3.102362205 | J173: 15.4 | K173: 2.5 | L173: 1 | M173: 0.25 | N173: 4 | O173: X | T173: 440 | U173: 17.32283465 | V173: 440 | W173: 17.32283465
A174: LG | B174: LAS039DB7-V | C174: 500 | D174: 500 | E174: 78.8 | F174: 7 | G174: 19.68503937 | H174: 19.68503937 | I174: 3.102362205 | J174: 15.4 | K174: 3.9 | L174: 1 | M174: 0.25 | N174: 4 | O174: X | T174: 440 | U174: 17.32283465 | V174: 440 | W174: 17.32283465
A175: LG | B175: LSCA029-1000 mm | C175: 1000 | D175: 500 | E175: 66 | F175: 14 | G175: 39.37007874 | H175: 19.68503937 | I175: 2.598425197 | J175: 30.8 | K175: 2.97 | L175: 2 | M175: 0.5 | N175: 2 | O175: X | T175: 944 | U175: 37.16535433 | V175: 444 | W175: 17.48031496
A176: LG | B176: LSCA039-1000 mm | C176: 1000 | D176: 500 | E176: 66 | F176: 14 | G176: 39.37007874 | H176: 19.68503937 | I176: 2.598425197 | J176: 30.8 | K176: 3.91 | L176: 2 | M176: 0.5 | N176: 2 | O176: X | T176: 944 | U176: 37.16535433 | V176: 444 | W176: 17.48031496
A177: LG | B177: LSCA029-500 mm | C177: 500 | D177: 500 | E177: 66 | F177: 10 | G177: 19.68503937 | H177: 19.68503937 | I177: 2.598425197 | J177: 22 | K177: 2.97 | L177: 1 | M177: 0.25 | N177: 4 | O177: X | T177: 444 | U177: 17.48031496 | V177: 444 | W177: 17.48031496
A178: LG | B178: LSCA039-500 mm | C178: 500 | D178: 500 | E178: 66 | F178: 10 | G178: 19.68503937 | H178: 19.68503937 | I178: 2.598425197 | J178: 22 | K178: 3.91 | L178: 1 | M178: 0.25 | N178: 4 | O178: X | T178: 444 | U178: 17.48031496 | V178: 444 | W178: 17.48031496
A180: LIGHTHOUSE | B180: q1.5 | C180: 270 | D180: 480 | E180: 80.5 | F180: 6.721 | G180: =C180/25.4 -> 10.62992126 | H180: 18.8976378 | I180: 3.169291339 | J180: =F180*2.2 -> 14.7862 | K180: 1.5 | L180: =C180/D180 -> 0.5625 | M180: =C180*D180/1000000 -> 0.1296 | N180: 7.716049383 | O180: X
A181: LIGHTHOUSE | B181: q1.8 | C181: 270 | D181: 480 | E181: 80.5 | F181: 6.721 | G181: 10.62992126 | H181: 18.8976378 | I181: 3.169291339 | J181: =F181*2.2 -> 14.7862 | K181: 1.8 | L181: =C181/D181 -> 0.5625 | M181: =C181*D181/1000000 -> 0.1296 | N181: 7.716049383 | O181: X
A182: LIGHTHOUSE | B182: q2.5 | C182: 270 | D182: 480 | E182: 80.5 | F182: 6.721 | G182: 10.62992126 | H182: 18.8976378 | I182: 3.169291339 | J182: =F182*2.2 -> 14.7862 | K182: 2.5 | L182: =C182/D182 -> 0.5625 | M182: =C182*D182/1000000 -> 0.1296 | N182: 7.716049383 | O182: X
A184: MITSUBISHI | B184: VS-12NP160 | C184: 540 | D184: 480 | E184: 99 | F184: 13 | G184: =C184/25.4 -> 21.25984252 | H184: 18.8976378 | I184: 3.897637795 | J184: =F184*2.2 -> 28.6 | K184: 1.25 | L184: =C184/D184 -> 1.125 | M184: =C184*D184/1000000 -> 0.2592 | N184: 3.858024691
A185: MITSUBISHI | B185: VS-15NP160 | C185: 540 | D185: 480 | E185: 90 | F185: 12 | G185: 21.25984252 | H185: 18.8976378 | I185: 3.543307087 | J185: 26.4 | K185: 1.5 | L185: 1.125 | M185: =C185*D185/1000000 -> 0.2592 | N185: 3.858024691 | O185: X
A187: NANOLUMENS | B187: ENGAGE SERIES | C187: 337.5 | D187: 600 | E187: 101.6 | F187: 5.1 | G187: 13.28740157 | H187: 23.62204724 | I187: 4 | J187: 11.22 | K187: 1.2 | L187: =C187/D187 -> 0.5625 | M187: =C187*D187/1000000 -> 0.2025 | N187: 4.938271605
A188: NANOLUMENS | B188: ENGAGE SERIES | C188: 337.5 | D188: 600 | E188: 101.6 | F188: 5.1 | G188: 13.28740157 | H188: 23.62204724 | I188: 4 | J188: 11.22 | K188: 1.5 | L188: 0.5625 | M188: 0.2025 | N188: 4.938271605 | O188: X
A189: NANOLUMENS | B189: ENGAGE SERIES | C189: 337.5 | D189: 600 | E189: 101.6 | F189: 5.1 | G189: 13.28740157 | H189: 23.62204724 | I189: 4 | J189: 11.22 | K189: 1.8 | L189: 0.5625 | M189: 0.2025 | N189: 4.938271605
A190: NANOLUMENS | B190: ENGAGE SERIES | C190: 337.5 | D190: 600 | E190: 101.6 | F190: 5.1 | G190: 13.28740157 | H190: 23.62204724 | I190: 4 | J190: 11.22 | K190: 2.5 | L190: 0.5625 | M190: 0.2025 | N190: 4.938271605 | O190: X
A191: NANOLUMENS | B191: NIXEL SERIES | C191: 150 | D191: 240 | E191: 79.375 | F191: 2.32 | G191: 5.905511811 | H191: 9.448818898 | I191: 3.125 | J191: 5.104 | K191: 2.5 | L191: 0.625 | M191: 0.036 | N191: 27.77777778 | O191: X
A192: NANOLUMENS | B192: NIXEL SERIES | C192: 152.4 | D192: 304.8 | E192: 79.375 | F192: 2.86 | G192: =C192/25.4 -> 6 | H192: 12 | I192: 3.125 | J192: 6.292 | K192: 3 | L192: 0.5 | M192: 0.04645152 | N192: 21.52782083 | O192: X
A193: NANOLUMENS | B193: NIXEL SERIES | C193: 152.4 | D193: 304.8 | E193: 79.375 | F193: 2.86 | G193: 6 | H193: 12 | I193: 3.125 | J193: 6.292 | K193: 4 | L193: 0.5 | M193: 0.04645152 | N193: 21.52782083 | O193: X
A194: NANOLUMENS | B194: NIXEL SERIES | C194: 152.4 | D194: 304.8 | E194: 79.375 | F194: 2.86 | G194: 6 | H194: 12 | I194: 3.125 | J194: =F194*2.2 -> 6.292 | K194: 5 | L194: 0.5 | M194: 0.04645152 | N194: 21.52782083 | O194: X
A195: NANOLUMENS | B195: NIXEL SERIES | C195: 152.4 | D195: 304.8 | E195: 79.375 | F195: 2.86 | G195: 6 | H195: 12 | I195: 3.125 | J195: =F195*2.2 -> 6.292 | K195: 6 | L195: 0.5 | M195: 0.04645152 | N195: 21.52782083 | O195: X
A196: NANOLUMENS | B196: NIXEL SERIES | C196: 152.4 | D196: 304.8 | E196: 79.375 | F196: 2.86 | G196: 6 | H196: 12 | I196: 3.125 | J196: =F196*2.2 -> 6.292 | K196: 9 | L196: 0.5 | M196: 0.04645152 | N196: =1/M196 -> 21.52782083 | O196: X
A198: NEC | B198: LO12i | C198: 480 | D198: 480 | E198: 89 | F198: 8 | G198: =C198/25.4 -> 18.8976378 | H198: =D198/25.4 -> 18.8976378 | I198: =E198/25.4 -> 3.503937008 | J198: =F198*2.2 -> 17.6 | K198: 1.29 | L198: 1 | M198: =C198*D198/1000000 -> 0.2304 | N198: 4.340277778 | O198: X | AD198: 372 X 372
A199: NEC | B199: LO15i | C199: 480 | D199: 480 | E199: 89 | F199: 8 | G199: 18.8976378 | H199: 18.8976378 | I199: 3.503937008 | J199: 17.6 | K199: 1.58 | L199: 1 | M199: 0.2304 | N199: 4.340277778 | O199: X | AD199: 304 X 304
A200: NEC | B200: LO20i | C200: 480 | D200: 480 | E200: 89 | F200: 8 | G200: 18.8976378 | H200: 18.8976378 | I200: 3.503937008 | J200: 17.6 | K200: 2 | L200: 1 | M200: 0.2304 | N200: 4.340277778 | O200: X | AD200: 240 X 240
A201: NEC | B201: LO25i | C201: 480 | D201: 480 | E201: 89 | F201: 8 | G201: 18.8976378 | H201: 18.8976378 | I201: 3.503937008 | J201: 17.6 | K201: 2.5 | L201: 1 | M201: 0.2304 | N201: 4.340277778 | O201: X | AD201: 192 X 192
A202: NEC | B202: LO30i | C202: 480 | D202: 480 | E202: 89 | F202: 8 | G202: 18.8976378 | H202: 18.8976378 | I202: 3.503937008 | J202: 17.6 | K202: 3 | L202: 1 | M202: 0.2304 | N202: 4.340277778 | O202: X | AD202: 160 X 160
A203: NEC | B203: LO40i | C203: 480 | D203: 480 | E203: 89 | F203: 8 | G203: 18.8976378 | H203: 18.8976378 | I203: 3.503937008 | J203: 17.6 | K203: 4 | L203: 1 | M203: 0.2304 | N203: 4.340277778 | O203: X | AD203: 120 X 120
A204: NEC | B204: LO48i | C204: 480 | D204: 480 | E204: 89 | F204: 8 | G204: 18.8976378 | H204: 18.8976378 | I204: 3.503937008 | J204: 17.6 | K204: 4.8 | L204: =C204/D204 -> 1 | M204: 0.2304 | N204: 4.340277778 | O204: X | AD204: 100 X 100
A205: NEC | B205: LO60i | C205: 480 | D205: 480 | E205: 89 | F205: 8 | G205: 18.8976378 | H205: 18.8976378 | I205: 3.503937008 | J205: 17.6 | K205: 6 | L205: 1 | M205: 0.2304 | N205: 4.340277778 | O205: X | AD205: 80 X 80
A206: NEC | B206: LED-F012i | C206: 342 | D206: 608 | E206: 90 | F206: 9.5 | G206: 13.46456693 | H206: 23.93700787 | I206: 3.543307087 | J206: 20.9 | K206: 1.26 | L206: 0.5625 | M206: 0.207936 | N206: 4.809172053 | O206: X | AD206: 480 X 720
A207: NEC | B207: LED-F015i | C207: 342 | D207: 608 | E207: 90 | F207: 9.5 | G207: 13.46456693 | H207: 23.93700787 | I207: 3.543307087 | J207: 20.9 | K207: 1.58 | L207: 0.5625 | M207: 0.207936 | N207: 4.809172053 | O207: X
A208: NEC | B208: LED-F019i | C208: 342 | D208: 608 | E208: 90 | F208: 9.5 | G208: 13.46456693 | H208: 23.93700787 | I208: 3.543307087 | J208: 20.9 | K208: 1.9 | L208: 0.5625 | M208: 0.207936 | N208: 4.809172053 | O208: X
A209: NEC | B209: LED-F023i | C209: 342 | D209: 608 | E209: 90 | F209: 9.5 | G209: 13.46456693 | H209: 23.93700787 | I209: 3.543307087 | J209: 20.9 | K209: 2.3 | L209: 0.5625 | M209: 0.207936 | N209: 4.809172053 | O209: X
A210: NEC | B210: LED-F027i | C210: 342 | D210: 608 | E210: 90 | F210: 9.5 | G210: 13.46456693 | H210: 23.93700787 | I210: 3.543307087 | J210: 20.9 | K210: 2.7 | L210: 0.5625 | M210: 0.207936 | N210: 4.809172053 | O210: X
A211: NEC | B211: LED-F038i | C211: 342 | D211: 608 | E211: 90 | F211: 9.5 | G211: 13.46456693 | H211: 23.93700787 | I211: 3.543307087 | J211: 20.9 | K211: 3.8 | L211: 0.5625 | M211: 0.207936 | N211: 4.809172053 | O211: X
A212: NEC | B212: LED-FE012i2 | C212: 342 | D212: 608 | E212: 50 | F212: 8.8 | G212: 13.46456693 | H212: 23.93700787 | I212: 1.968503937 | J212: 19.36 | K212: 1.266 | L212: 0.5625 | M212: 0.207936 | N212: 4.809172053 | O212: X
A213: NEC | B213: LED-FE015i2 | C213: 342 | D213: 608 | E213: 50 | F213: 8.8 | G213: 13.46456693 | H213: 23.93700787 | I213: 1.968503937 | J213: 19.36 | K213: 1.583 | L213: 0.5625 | M213: 0.207936 | N213: 4.809172053 | O213: X
A214: NEC | B214: LED-FE019i2 | C214: 342 | D214: 608 | E214: 50 | F214: 8.8 | G214: 13.46456693 | H214: 23.93700787 | I214: 1.968503937 | J214: 19.36 | K214: 1.9 | L214: 0.5625 | M214: 0.207936 | N214: 4.809172053 | O214: X
A215: NEC | B215: LED-FE025i2 | C215: 342 | D215: 608 | E215: 50 | F215: 8.8 | G215: 13.46456693 | H215: 23.93700787 | I215: 1.968503937 | J215: 19.36 | K215: 2.533 | L215: 0.5625 | M215: 0.207936 | N215: 4.809172053 | O215: X
A216: NEC | B216: LED-FE031i2 | C216: 342 | D216: 608 | E216: 50 | F216: 8.8 | G216: 13.46456693 | H216: 23.93700787 | I216: 1.968503937 | J216: 19.36 | K216: 3.167 | L216: 0.5625 | M216: 0.207936 | N216: 4.809172053 | O216: X
A217: NEC | B217: LED-FE038i2 | C217: 342 | D217: 608 | E217: 50 | F217: 8.8 | G217: 13.46456693 | H217: 23.93700787 | I217: 1.968503937 | J217: 19.36 | K217: 3.8 | L217: 0.5625 | M217: 0.207936 | N217: 4.809172053 | O217: X
A219: NEOTI | B219: U09I | C219: 337.5 | D219: 600 | E219: 99.4 | F219: 8.61 | G219: =C219/25.4 -> 13.28740157 | H219: 23.62204724 | I219: 3.913385827 | J219: =F219*2.2 -> 18.942 | K219: 0.93 | L219: 0.5625 | M219: =C219*D219/1000000 -> 0.2025 | N219: 4.938271605 | O219: X
A220: NEOTI | B220: U12I | C220: 337.5 | D220: 600 | E220: 99.4 | F220: 8.61 | G220: 13.28740157 | H220: 23.62204724 | I220: 3.913385827 | J220: 18.942 | K220: 1.25 | L220: 0.5625 | M220: 0.2025 | N220: 4.938271605 | O220: X
A221: NEOTI | B221: U15I | C221: 337.5 | D221: 600 | E221: 99.4 | F221: 8.61 | G221: 13.28740157 | H221: 23.62204724 | I221: 3.913385827 | J221: 18.942 | K221: 1.56 | L221: 0.5625 | M221: 0.2025 | N221: 4.938271605 | O221: X
... 123 more rows

Sheet USLIM Configure Tool
B5: TiLED Part Number Configurator
E6: =+C8&" "&E8 -> UNILUMIN USLIM
E7: =IFERROR(VLOOKUP(E6,MFGSER,11,FALSE),"") ->  | F7: acclaim p
B8: Select Manufacturer | C8: UNILUMIN | D8: Select dvLED Series | E8: USLIM
B9: =IF(C9="Please Call Chief Project Manager for available options. (952)-225-6931","X","Z") -> Z
B11: How Many Rows? (How many TiLES high?) 1 display high = 1000mm 0.5 displays high = 500mm | C11: How Many Columns? (How many TiLES wide?) 1 display wide = 500mm
B12: 3.5 | C12: 10
B13: For configuations taller than 10 displays high contact Chief Project Manager at (952)-225-6931 or send an email to lukas.westin@legrand.com
B15: Wall Mount Part # | C15: Qty | E15: Side Cover Part # | F15: Qty
B16: TILD1X2US-L | C16: =(VLOOKUP(B12,typeUSLIM,2,FALSE)) -> 1 | E16: TILSC05HUS | F16: =(VLOOKUP(B12,typeUSLIM,7,FALSE)) -> 1
B17: TILD1X2US-M | C17: =(VLOOKUP(B12,typeUSLIM,2,FALSE))*(C12-1) -> 9 | E17: TILSC1HUS | F17: =(VLOOKUP(B12,typeUSLIM,8,FALSE)) -> 3
B18: TILD1X2US-R | C18: =(VLOOKUP(B12,typeUSLIM,2,FALSE)) -> 1
B19: TILD1X1US-L | C19: =(VLOOKUP(B12,typeUSLIM,3,FALSE)) -> 1
B20: TILD1X1US-M | C20: =(VLOOKUP(B12,typeUSLIM,3,FALSE))*(C12-1) -> 9
B21: TILD1X1US-R | C21: =(VLOOKUP(B12,typeUSLIM,3,FALSE)) -> 1
B22: TILD1X05US-L | C22: =(VLOOKUP(B12,typeUSLIM,4,FALSE)) -> 1
B23: TILD1X05US-M | C23: =(VLOOKUP(B12,typeUSLIM,4,FALSE))*(C12-1) -> 9
B24: TILD1X05US-R | C24: =(VLOOKUP(B12,typeUSLIM,4,FALSE)) -> 1
B25: TILVAB2 | C25: =(VLOOKUP(B12,typeUSLIM,5,FALSE))*(C12+1) -> 22
B26: TILHDWUS | C26: =(VLOOKUP(B12,typeUSLIM,6,FALSE))*C12 -> 40
B29: legrandav.com/chief
A31: =+E18&F18 -> 
A32: =+E18&F18 -> 
A33: =+E18&F18 -> 
H39: =IF((AND(H38=TRUE,#REF!= TRUE)), TRUE, FALSE) ->  | I39: =IF((AND(I38=TRUE, H39=TRUE)), TRUE, FALSE) ->  | K39: =IF((AND(K38=TRUE, J39=TRUE)), TRUE, FALSE) -> 
H40: =IF((AND(H39=TRUE,#REF!= TRUE)), TRUE, FALSE) ->  | M40: =IF((AND(M39=TRUE, L40=TRUE)), TRUE, FALSE) -> 
H41: =IF((AND(H40=TRUE,#REF!= TRUE)), TRUE, FALSE) ->  | I41: =IF((AND(I40=TRUE, H41=TRUE)), TRUE, FALSE) -> 
H42: =IF((AND(H41=TRUE,#REF!= TRUE)), TRUE, FALSE) -> 
H43: =IF((AND(H42=TRUE,#REF!= TRUE)), TRUE, FALSE) -> 
H44: =IF((AND(H43=TRUE,#REF!= TRUE)), TRUE, FALSE) -> 

Sheet USLIM Tables (hidden)
A1: Display Sizes
A2: 500mm W x 500mm H | B2: equals 1/2 display tall | J2: Named Range: | L2: typeUSLIM
A3: 500mm W x 1000mm H | B3: equals 1 display tall | J3: 1x2, 1x3, 1x4
A5: Unilumin USLIM (13 skus) | K5: 2000mm | L5: 1000m | M5: 500mm | N5: TILVAB2 | O5: TILHDWUS | P5: TILSC05HUS | Q5: TILSC1HUS
A6: Part Number | B6: Description | C6: Rules | I6: Row Height | J6: 1 | K6: 2 | L6: 3 | M6: 4 | N6: 5 | O6: 6 | P6: 7 | Q6: 8 | R6: 9 | S6: 10 | T6: 11 | W6: Columns Width
A7: TILD1X05US-L | B7: UPPER LEFT, DUAL FEET, 500 mm | C7: Left Side only, 500mm tall only | J7: 1 | L7: 1 | N7: 0 | O7: =ROUNDUP(J7,0) -> 1 | Q7: 1 | W7: 1
A8: TILD1X05US-M | B8: UPPER MIDDLE, DUAL FEET, 500 mm | C8: Middle only, 500mm tall only | J8: 1.5 | L8: 1 | M8: 1 | N8: =(SUM(K8:M8)-1) -> 1 | O8: =ROUNDUP(J8,0) -> 2 | P8: 1 | Q8: 1 | W8: 2
A9: TILD1X05US-R | B9: UPPER RIGHT, DUAL FEET, 500 mm | C9: Right Side only, 500mm tall only | J9: 2 | K9: 1 | N9: =(SUM(K9:M9)-1) -> 0 | O9: 2 | Q9: 2 | W9: 3
A10: TILD1X1US-L | B10: UPPER LEFT, DUAL FEET, 1000 mm | C10: Left Side only, 1000mm tall only | J10: 2.5 | K10: 1 | M10: 1 | N10: 1 | O10: 3 | P10: 1 | Q10: 2 | W10: 4
A11: TILD1X1US-M | B11: UPPER MIDDLE, DUAL FEET, 1000 mm | C11: Middle only, 1000mm tall only | J11: 3 | K11: 1 | L11: 1 | N11: 1 | O11: 3 | Q11: 3 | W11: 5
A12: TILD1X1US-R | B12: UPPER RIGHT, DUAL FEET, 1000 mm | C12: Right Side only, 10000mm tall only | J12: 3.5 | K12: 1 | L12: 1 | M12: 1 | N12: 2 | O12: 4 | P12: 1 | Q12: 3 | W12: 6
A13: TILD1X2US-L | B13: UPPER LEFT, DUAL FEET, 2000 mm | C13: Left Side only, 2000mm tall only | J13: 4 | K13: 2 | N13: 1 | O13: 4 | Q13: 4 | W13: 7
A14: TILD1X2US-M | B14: UPPER MIDDLE, DUAL FEET, 2000 mm | C14: Middle only, 2000mm tall only | J14: 4.5 | K14: 2 | M14: 1 | N14: 2 | O14: 5 | P14: 1 | Q14: 4 | W14: 8
A15: TILD1X2US-R | B15: UPPER RIGHT, DUAL FEET, 2000 mm | C15: Right Side only, 20000mm tall only | J15: 5 | K15: 2 | L15: 1 | N15: 2 | O15: 5 | Q15: 5 | W15: 9
A16: TILVAB2 | B16: USLIM VERTICAL CONNNECTOR | C16: only used in between mounts (1 per) | J16: 5.5 | K16: 2 | L16: 1 | M16: 1 | N16: 3 | O16: 6 | P16: 1 | Q16: 5 | W16: 10
A17: TILHDWUS | B17: USLIM HARDWARE BAG | C17: 1 per display | J17: 6 | K17: 3 | N17: 2 | O17: 6 | Q17: 6 | W17: 11
A18: TILSC05HUS | B18: USLIM SIDE COVER, 500 mm HIGH | C18: 1 per 500mm or 1/2 display tall | J18: 6.5 | K18: 3 | M18: 1 | N18: 3 | O18: 7 | P18: 1 | Q18: 6 | W18: 12
A19: TILSC1HUS | B19: USLIM SIDE COVER, 1000 mm HIGH | C19: 1 per 1000mm or 1 display tall | J19: 7 | K19: 2 | L19: 1 | N19: 2 | O19: 7 | Q19: 7 | W19: 13
J20: 7.5 | K20: 2 | L20: 1 | M20: 1 | N20: 3 | O20: 8 | P20: 1 | Q20: 7 | W20: 14
J21: 8 | K21: 4 | N21: 3 | O21: 8 | Q21: 8 | W21: 15
J22: 8.5 | K22: 4 | M22: 1 | N22: 4 | O22: 9 | P22: 1 | Q22: 8 | W22: 16
A23: rows | B23: 3.5 | J23: 9 | K23: 4 | L23: 1 | M23: 1 | N23: 5 | O23: 9 | Q23: 9 | W23: 17
A24: columns | B24: 10 | J24: 9.5 | K24: 4 | L24: 1 | M24: 1 | N24: 5 | O24: 10 | P24: 1 | Q24: 9 | W24: 18
J25: 10 | K25: 5 | N25: 4 | O25: 10 | Q25: 10 | W25: 19
A26: part number | B26: description | C26: qty | J26: 10.5 | K26: 5 | M26: 1 | N26: 5 | O26: 11 | P26: 1 | Q26: 10 | W26: 20
A27: TILD1X2US-L | B27: UPPER LEFT, DUAL FEET, 2000 mm | C27: 10 | J27: 11 | K27: 5 | L27: 1 | N27: 5 | O27: 11 | Q27: 11 | W27: 21
A28: TILD1X2US-M | B28: UPPER MIDDLE, DUAL FEET, 2000 mm | C28: 10 | J28: 11.5 | K28: 5 | L28: 1 | M28: 1 | N28: 6 | O28: 12 | P28: 1 | Q28: 11 | W28: 22
A29: TILD1X2US-R | B29: UPPER RIGHT, DUAL FEET, 2000 mm | C29: 10 | J29: 12 | K29: 6 | N29: 5 | O29: 12 | Q29: 12 | W29: 23
A30: TILD1X1US-L | B30: UPPER LEFT, DUAL FEET, 1000 mm | C30: 10 | J30: 12.5 | K30: 6 | M30: 1 | N30: 6 | O30: 13 | P30: 1 | Q30: 12 | W30: 24
A31: TILD1X1US-M | B31: UPPER MIDDLE, DUAL FEET, 1000 mm | C31: 10 | J31: 13 | K31: 6 | L31: 1 | N31: 6 | O31: 13 | Q31: 13 | W31: 25
A32: TILD1X1US-R | B32: UPPER RIGHT, DUAL FEET, 1000 mm | C32: 10 | J32: 13.5 | K32: 6 | L32: 1 | M32: 1 | N32: 7 | O32: 14 | P32: 1 | Q32: 13 | W32: 26
A33: TILD1X05US-L | B33: UPPER LEFT, DUAL FEET, 500 mm | C33: 10 | J33: 14 | K33: 7 | N33: 6 | O33: 14 | Q33: 14 | W33: 27
A34: TILD1X05US-M | B34: UPPER MIDDLE, DUAL FEET, 500 mm | C34: 10 | J34: 14.5 | K34: 7 | M34: 1 | N34: 7 | O34: 15 | P34: 1 | Q34: 14 | W34: 28
A35: TILD1X05US-R | B35: UPPER RIGHT, DUAL FEET, 500 mm | C35: 10 | J35: 15 | K35: 7 | L35: 1 | N35: 7 | O35: 15 | Q35: 15 | W35: 29
A36: TILVAB2 | B36: USLIM VERTICAL CONNNECTOR | C36: 22 | J36: 15.5 | K36: 7 | L36: 1 | M36: 1 | N36: 8 | O36: 16 | P36: 1 | Q36: 15 | W36: 30
A37: TILHDWUS | B37: USLIM HARDWARE BAG | J37: 16 | K37: 8 | N37: 7 | O37: 16 | Q37: 16 | W37: 31
J38: 16.5 | K38: 8 | M38: 1 | N38: 8 | O38: 17 | P38: 1 | Q38: 16 | W38: 32
J39: 17 | K39: 8 | L39: 1 | N39: 8 | O39: 17 | Q39: 17 | W39: 33
J40: 17.5 | K40: 8 | L40: 1 | M40: 1 | N40: 9 | O40: 18 | P40: 1 | Q40: 17 | W40: 34
J41: 18 | K41: 9 | N41: 8 | O41: 18 | Q41: 18 | W41: 35
J42: 18.5 | K42: 9 | M42: 1 | N42: 9 | O42: 19 | P42: 1 | Q42: 18 | W42: 36
J43: 19 | K43: 9 | L43: 1 | N43: 9 | O43: 19 | Q43: 19 | W43: 37
J44: 19.5 | K44: 9 | L44: 1 | M44: 1 | N44: 10 | O44: 20 | P44: 1 | Q44: 19 | W44: 38
J45: 20 | K45: 10 | N45: 9 | O45: 20 | Q45: 20 | W45: 39
W46: 40
W47: 41
W48: 42
W49: 43
W50: 44
W51: 45
W52: 46
W53: 47
W54: 48
W55: 49
W56: 50
W57: 51
W58: 52
W59: 53
W60: 54
W61: 55
W62: 56
W63: 57
W64: 58
W65: 59
W66: 60
W67: 61
W68: 62
W69: 63
W70: 64
W71: 65
W72: 66
W73: 67
W74: 68
W75: 69
W76: 70
W77: 71
W78: 72
W79: 73
W80: 74
W81: 75
W82: 76
W83: 77
W84: 78
W85: 79
W86: 80
W87: 81
W88: 82
W89: 83
W90: 84
W91: 85
W92: 86
W93: 87
W94: 88
W95: 89
W96: 90
W97: 91
W98: 92
W99: 93
W100: 94
W101: 95
W102: 96
W103: 97
W104: 98
W105: 99
W106: 100

Sheet Samsung IER IFR IEA Conf. Tool
B5: TiLED Part Number Configurator
E6: =+C8&" "&E8 -> Samsung IER/IFR/IEA & -F models
E7: =IFERROR(VLOOKUP(E6,MFGSER,11,FALSE),"") ->  | F7: acclaim p
B8: Select Manufacturer | C8: Samsung | D8: Select dvLED Series | E8: IER/IFR/IEA & -F models
B9: =IF(C9="Please Call Chief Project Manager for available options. (952)-225-6931","X","Z") -> Z
B11: How Many Rows? (How many TiLES high?) | C11: How Many Columns? (How many TiLES wide?)
B12: 6 | C12: 6
B13: For configuations taller than 10 displays high contact Chief Project Manager at (952)-225-6931 or send an email to lukas.westin@legrand.com
B15: Wall Mount Part # | C15: Qty | E15: Side Cover Part # | F15: Qty
B16: TILD1X2IER-L | C16: =(VLOOKUP($B$12,typeIER,3,FALSE)) -> 0 | E16: TILSC2HIFH | F16: =(VLOOKUP(B12,typeIER,5,FALSE)) -> 0
B17: TILD1X2IER-M | C17: =(VLOOKUP(B12,typeIER,3,FALSE))*(ROUNDDOWN(C12,0)-1) -> 0 | E17: TILSC3HIFH | F17: =(VLOOKUP(B12,typeIER,6,FALSE)) -> 2
B18: TILD1X2IER-R | C18: =(VLOOKUP(B12,typeIER,3,FALSE)) -> 0
B19: TILD1X3IER-L | C19: =(VLOOKUP(B12,typeIER,2,FALSE)) -> 2
B20: TILD1X3IER-M | C20: =(VLOOKUP(B12,typeIER,2,FALSE))*(ROUNDDOWN(C12,0)-1) -> 10 | F20: Easier, cost-saving installation
B21: TILD1X3IER-R | C21: =(VLOOKUP(B12,typeIER,2,FALSE)) -> 2
B22: TILD1X2IERF | C22: =(VLOOKUP($B$12,typeIER,3,FALSE))*(VLOOKUP(C12-TRUNC(C12,0),'IER Tables '!F6:G9,2,FALSE)) -> 0
B23: TILD1X3IERF | C23: =(VLOOKUP(B12,typeIER,2,FALSE))*(VLOOKUP(C12-TRUNC(C12,0),'IER Tables '!F6:G9,2,FALSE)) -> 0
B24: TILVAB1 | C24: =((VLOOKUP(B12,typeIER,4,FALSE))*(ROUNDDOWN(C12,0)))+((VLOOKUP(B12,typeIER,4,FALSE))*(VLOOKUP(C12-TRUNC(C12,0),'IER Tables '!F6:G9,2,FALSE))) -> 6
B27: legrandav.com/chief
A29: =+E18&F18 -> 
A30: =+E18&F18 -> 
A31: =+E18&F18 -> 

Sheet IER Tables (hidden)
K2: Named Range: | M2: typeIER-F column width | Q2: Named Range: | S2: typeIER
F3: Named Range: | H3: typeIER-F column width multiplier | K3: 1x2, 1x3 | Q3: 1x2, 1x3, 1x4
F4: 1x2, 1x3
Q5: 3 high | R5: 2 high | S5: TILVAB1 | T5: TILSC2HIFH | U5: TILSC3HIFH
F6: 0 | G6: 0 | J6: Columns Width | K6: 1 | L6: 2 | O6: Row Height | P6: 1 | Q6: 2 | R6: 3 | S6: 4 | T6: 5 | U6: 6
A7: Part Number | B7: Description | C7: Rules | F7: 0.25 | G7: 1 | J7: 1 | K7: 1 | L7: 0 | P7: 1
A8: TILD1X2IER-L | B8: TiLED SAMSUNG IER WALL MOUNT, 2 HIGH, LEFT | C8: Left Side only, 2 displays tall | F8: 0.5 | G8: 2 | J8: 2 | K8: 1.25 | L8: 1 | P8: 2 | R8: 1 | S8: =SUM(Q8:R8)-1 -> 0 | T8: 1
A9: TILD1X2IER-M | B9: TiLED SAMSUNG IER WALL MOUNT, 2 HIGH, MIDDLE | C9: Middle only, 2 displays tall | F9: 0.75 | G9: 3 | J9: 3 | K9: 1.5 | L9: 2 | P9: 3 | Q9: 1 | S9: =SUM(Q9:R9)-1 -> 0 | U9: 1
A10: TILD1X2IER-R | B10: TiLED SAMSUNG IER WALL MOUNT, 2 HIGH, RIGHT | C10: Right Side only, 2 displays tall | J10: 4 | K10: 1.75 | L10: 3 | P10: 4 | R10: 2 | S10: 1 | T10: 2
A11: TILD1X3IER-L | B11: TiLED SAMSUNG IER WALL MOUNT, 3 HIGH, LEFT | C11: Left Side only, 3 displays tall | J11: 5 | K11: 2 | L11: 0 | P11: 5 | Q11: 1 | R11: 1 | S11: 1 | T11: 1 | U11: 1
A12: TILD1X3IER-M | B12: TiLED SAMSUNG IER WALL MOUNT, 3 HIGH, MIDDLE | C12: Middle only, 3 displays tall | J12: 6 | K12: 2.25 | L12: 1 | P12: 6 | Q12: 2 | S12: 1 | U12: 2
A13: TILD1X3IER-R | B13: TiLED SAMSUNG IER WALL MOUNT, 3 HIGH, RIGHT | C13: Right Side only, 3 displays tall | J13: 7 | K13: 2.5 | L13: 2 | P13: 7 | Q13: 1 | R13: 2 | S13: 2 | T13: 2 | U13: 1
A14: TILD1X2IERF | B14: TiLED SAMSUNG IER-F WALL MOUNT, 2 HIGH, | C14: 1/4, 1/2 or 3/4 wide, 2 displays tall, used on sides of configuraion only, only connects to TILD1X2IER-L & TILD1X2IER-R | J14: 8 | K14: 2.75 | L14: 3 | P14: 8 | Q14: 2 | R14: 1 | S14: 2 | T14: 1 | U14: 2
A15: TILD1X3IERF | B15: TiLED SAMSUNG IER-F WALL MOUNT, 3 HIGH, | C15: 1/4, 1/2 or 3/4 wide, 2 displays tall, used on sides of configuraion only, only connects to TILD1X3IER-L & TILD1X3IER-R | J15: 9 | K15: 3 | L15: 0 | P15: 9 | Q15: 3 | S15: 2 | U15: 3
A16: TILSC2HIFH | B16: TiLED SAMSUNG IFH/IER SIDE COVER , 2 HIGH | C16: Side Cover, 2 displays tall, used on sides of configuraion only, only connects to TILD1X2IER-L & TILD1X2IER-R | J16: 10 | K16: 3.25 | L16: 1 | P16: 10 | Q16: 2 | R16: 2 | S16: 3 | T16: 2 | U16: 2
A17: TILSC3HIFH | B17: TiLED SAMSUNG IFH/IER SIDE COVER , 3 HIGH | C17: Side Cover, 3 displays tall, used on sides of configuraion only, only connects to TILD1X3IER-L & TILD1X3IER-R | J17: 11 | K17: 3.5 | L17: 2 | P17: 11 | Q17: 3 | R17: 1 | S17: 3 | T17: 1 | U17: 3
A18: TILVAB1 | B18: VERTICAL CONNECTOR | C18: only used in between mounts 1 per middles, 0.5 per left & right, 1 between -F models | J18: 12 | K18: 3.75 | L18: 3 | P18: 12 | Q18: 4 | S18: 3 | U18: 4
J19: 13 | K19: 4 | L19: 0 | P19: 13 | Q19: 3 | R19: 2 | S19: 4 | T19: 2 | U19: 3
J20: 14 | K20: 4.25 | L20: 1 | P20: 14 | Q20: 4 | R20: 1 | S20: 4 | T20: 1 | U20: 4
J21: 15 | K21: 4.5 | L21: 2 | P21: 15 | Q21: 5 | S21: 4 | U21: 5
J22: 16 | K22: 4.75 | L22: 3 | P22: 16 | Q22: 4 | R22: 2 | S22: 5 | T22: 2 | U22: 4
J23: 17 | K23: 5 | L23: 0 | P23: 17 | Q23: 5 | R23: 1 | S23: 5 | T23: 1 | U23: 5
J24: 18 | K24: 5.25 | L24: 1 | P24: 18 | Q24: 6 | S24: 5 | U24: 6
J25: 19 | K25: 5.5 | L25: 2 | P25: 19 | Q25: 5 | R25: 2 | S25: 6 | T25: 2 | U25: 5
J26: 20 | K26: 5.75 | L26: 3 | P26: 20 | Q26: 6 | R26: 1 | S26: 6 | T26: 1 | U26: 6
J27: 21 | K27: 6 | L27: 0 | P27: 21 | Q27: 7 | S27: 6 | U27: 7
J28: 22 | K28: 6.25 | L28: 1 | P28: 22 | Q28: 6 | R28: 2 | S28: 7 | T28: 2 | U28: 6
J29: 23 | K29: 6.5 | L29: 2 | P29: 23 | Q29: 7 | R29: 1 | S29: 7 | T29: 1 | U29: 7
J30: 24 | K30: 6.75 | L30: 3 | P30: 24 | Q30: 8 | S30: 7 | U30: 8
J31: 25 | K31: 7 | L31: 0 | P31: 25 | Q31: 7 | R31: 2 | S31: 8 | T31: 2 | U31: 7
J32: 26 | K32: 7.25 | L32: 1 | P32: 26 | Q32: 8 | R32: 1 | S32: 8 | T32: 1 | U32: 8
J33: 27 | K33: 7.5 | L33: 2 | P33: 27 | Q33: 9 | S33: 8 | U33: 9
J34: 28 | K34: 7.75 | L34: 3 | P34: 28 | Q34: 8 | R34: 2 | S34: 9 | T34: 2 | U34: 8
J35: 29 | K35: 8 | L35: 0 | P35: 29 | Q35: 9 | R35: 1 | S35: 9 | T35: 1 | U35: 9
J36: 30 | K36: 8.25 | L36: 1 | P36: 30 | Q36: 10 | S36: 9 | U36: 10
K37: 8.5 | L37: 2
K38: 8.75 | L38: 3
K39: 9 | L39: 0
K40: 9.25 | L40: 1
K41: 9.5 | L41: 2
K42: 9.75 | L42: 3
K43: 10 | L43: 0
K44: 10.25 | L44: 1
K45: 10.5 | L45: 2
A46: old TILVAB1 formula | K46: 10.75 | L46: 3
A47: =(VLOOKUP(B12,typeIER,4,FALSE))*(ROUNDDOWN(C12,0)) ->  | K47: 11 | L47: 0
K48: 11.25 | L48: 1
K49: 11.5 | L49: 2
K50: 11.75 | L50: 3
K51: 12 | L51: 0
K52: 12.25 | L52: 1
K53: 12.5 | L53: 2
K54: 12.75 | L54: 3
K55: 13 | L55: 0
K56: 13.25 | L56: 1
K57: 13.5 | L57: 2
K58: 13.75 | L58: 3
K59: 14 | L59: 0
K60: 14.25 | L60: 1
K61: 14.5 | L61: 2
K62: 14.75 | L62: 3
K63: 15 | L63: 0

Sheet Sony Configure Tool
B5: TiLED Part Number Configurator
E6: =+C8&" "&E8 -> Sony Crystal LED B&C Series
E7: =IFERROR(VLOOKUP(E6,MFGSER,11,FALSE),"") ->  | F7: acclaim p
B8: Select Manufacturer | C8: Sony | D8: Select dvLED Series | E8: Crystal LED B&C Series
B9: =IF(C9="Please Call Chief Project Manager for available options. (952)-225-6931","X","Z") -> Z
B11: How Many Rows? (How many TiLES high?) | C11: How Many Columns? (How many TiLES wide?)
B12: 6 | C12: 6
B13: For configuations taller than 10 displays high contact Chief Project Manager at (952)-225-6931 or send an email to lukas.westin@legrand.com
B15: Wall Mount Part # | C15: Qty | E15: Side Cover Part # | F15: Qty
B16: TILD1X3S01-L | C16: =(VLOOKUP(B12,typeUSLIM,4,FALSE)) -> 2 | E16: TILSC2HSO1 | F16: =(VLOOKUP(B12,typeUSLIM,7,FALSE)) -> 0
B17: TILD1X3SO1-M | C17: =(VLOOKUP(B12,typeUSLIM,4,FALSE))*(C12-1) -> 10 | E17: TILSC3HSO1 | F17: =(VLOOKUP(B12,typeUSLIM,8,FALSE)) -> 2
B18: TILD1X3SO1-R | C18: =(VLOOKUP(B12,typeUSLIM,4,FALSE)) -> 2
B19: TILD1X4S01-L | C19: =(VLOOKUP(B12,typeUSLIM,3,FALSE)) -> 0
B20: TILD1X4SO1-M | C20: =(VLOOKUP(B12,typeUSLIM,3,FALSE))*(C12-1) -> 0
B21: TILD1X4SO1-R | C21: =(VLOOKUP(B12,typeUSLIM,3,FALSE)) -> 0
B22: TILD1X5S01-L | C22: =(VLOOKUP(B12,typeUSLIM,2,FALSE)) -> 0
B23: TILD1X5SO1-M | C23: =(VLOOKUP(B12,typeUSLIM,2,FALSE))*(C12-1) -> 0
B24: TILD1X5SO1-R | C24: =(VLOOKUP(B12,typeUSLIM,2,FALSE)) -> 0
B25: TILVAB1 | C25: =(VLOOKUP(B12,typeUSLIM,5,FALSE))*(C12+1) -> 7
B26: TILHDW1 | C26: =(VLOOKUP(B12,typeUSLIM,6,FALSE))*C12 -> 36
B29: legrandav.com/chief
A31: =+#REF!&G18 -> 
A32: =+#REF!&G18 -> 
A33: =+#REF!&G18 -> 
H39: =IF((AND(H38=TRUE,#REF!= TRUE)), TRUE, FALSE) ->  | I39: =IF((AND(I38=TRUE, H39=TRUE)), TRUE, FALSE) ->  | J39: =IF((AND(J38=TRUE,#REF!= TRUE)), TRUE, FALSE) ->  | K39: =IF((AND(K38=TRUE,#REF!= TRUE)), TRUE, FALSE) ->  | L39: =IF((AND(L38=TRUE,#REF!= TRUE)), TRUE, FALSE) -> 
H40: =IF((AND(H39=TRUE,#REF!= TRUE)), TRUE, FALSE) ->  | J40: =IF((AND(J39=TRUE,#REF!= TRUE)), TRUE, FALSE) ->  | K40: =IF((AND(K39=TRUE,#REF!= TRUE)), TRUE, FALSE) ->  | L40: =IF((AND(L39=TRUE,#REF!= TRUE)), TRUE, FALSE) -> 
H41: =IF((AND(H40=TRUE,#REF!= TRUE)), TRUE, FALSE) ->  | J41: =IF((AND(J40=TRUE,#REF!= TRUE)), TRUE, FALSE) ->  | K41: =IF((AND(K40=TRUE,#REF!= TRUE)), TRUE, FALSE) ->  | L41: =IF((AND(L40=TRUE,#REF!= TRUE)), TRUE, FALSE) -> 
H42: =IF((AND(H41=TRUE,#REF!= TRUE)), TRUE, FALSE) ->  | J42: =IF((AND(J41=TRUE,#REF!= TRUE)), TRUE, FALSE) ->  | K42: =IF((AND(K41=TRUE,#REF!= TRUE)), TRUE, FALSE) ->  | L42: =IF((AND(L41=TRUE,#REF!= TRUE)), TRUE, FALSE) -> 
H43: =IF((AND(H42=TRUE,#REF!= TRUE)), TRUE, FALSE) ->  | J43: =IF((AND(J42=TRUE,#REF!= TRUE)), TRUE, FALSE) ->  | K43: =IF((AND(K42=TRUE,#REF!= TRUE)), TRUE, FALSE) ->  | L43: =IF((AND(L42=TRUE,#REF!= TRUE)), TRUE, FALSE) -> 
H44: =IF((AND(H43=TRUE,#REF!= TRUE)), TRUE, FALSE) ->  | J44: =IF((AND(J43=TRUE,#REF!= TRUE)), TRUE, FALSE) ->  | K44: =IF((AND(K43=TRUE,#REF!= TRUE)), TRUE, FALSE) ->  | L44: =IF((AND(L43=TRUE,#REF!= TRUE)), TRUE, FALSE) -> 

Sheet Sony Tables (hidden)
B2: Named Range: | D2: typeUSLIM
B3: 1x2, 1x3, 1x4
C4: 5 | D4: 4 | E4: 3 | H4: 2 | I4: 3
C5: 5 HIGH | D5: 4 HIGH | E5: 3 HIGH | F5: TILVAB1 | G5: TILHDW1 | H5: TILSC2HSO1 | I5: TILSC3HSO1 | R5: Wall Mount Part #
A6: Row Height | B6: 1 | C6: 2 | D6: 3 | E6: 4 | F6: 5 | G6: 6 | H6: 7 | I6: 8 | J6: 9 | K6: 10 | L6: 11 | O6: Columns Width | R6: TILD1X3S01-L
B7: 1 | O7: 1 | R7: TILD1X3SO1-M
B8: 2 | O8: 2 | R8: TILD1X3SO1-R
A9: =(C9*$C$4)+(D9*$D$4)+(E9*$E$4) -> 3 | B9: 3 | E9: 1 | F9: =(SUM(C9:E9)-1) -> 0 | G9: =ROUNDUP(B9,0) -> 3 | I9: 1 | M9: =(H9*$H$4)+(I9*$I$4) -> 3 | O9: 3 | R9: TILD1X4S01-L
A10: 4 | B10: 4 | D10: 1 | F10: 0 | G10: 4 | H10: 2 | M10: =(H10*$H$4)+(I10*$I$4) -> 4 | O10: 4 | R10: TILD1X4SO1-M
A11: =(C11*$C$4)+(D11*$D$4)+(E11*$E$4) -> 5 | B11: 5 | C11: 1 | F11: 0 | G11: 5 | H11: 1 | I11: 1 | M11: 5 | O11: 5 | R11: TILD1X4SO1-R
A12: =(C12*$C$4)+(D12*$D$4)+(E12*$E$4) -> 6 | B12: 6 | E12: 2 | F12: 1 | G12: 6 | I12: 2 | M12: 6 | O12: 6 | R12: TILD1X5S01-L
A13: 7 | B13: 7 | D13: 1 | E13: 1 | F13: 1 | G13: 7 | H13: 2 | I13: 1 | M13: 7 | O13: 7 | R13: TILD1X5SO1-M
A14: 8 | B14: 8 | D14: 2 | F14: 1 | G14: 8 | H14: 4 | M14: 8 | O14: 8 | R14: TILD1X5SO1-R
A15: 9 | B15: 9 | C15: 1 | D15: 1 | F15: 1 | G15: 9 | I15: 3 | M15: 9 | O15: 9 | R15: TILVAB1
A16: 10 | B16: 10 | C16: 2 | F16: 1 | G16: 10 | H16: 2 | I16: 2 | M16: 10 | O16: 10 | R16: TILHDW1
A17: 11 | B17: 11 | C17: 1 | E17: 2 | F17: 2 | G17: 11 | H17: 1 | I17: 3 | M17: 11 | O17: 11 | R17: TILSC2HSO1
A18: 12 | B18: 12 | D18: 3 | F18: 2 | G18: 12 | I18: 4 | M18: 12 | O18: 12 | R18: TILSC3HSO1
A19: 13 | B19: 13 | C19: 2 | E19: 1 | F19: 2 | G19: 13 | H19: 2 | I19: 3 | M19: 13 | O19: 13
A20: 14 | B20: 14 | C20: 2 | D20: 1 | F20: 2 | G20: 14 | H20: 1 | I20: 4 | M20: 14 | O20: 14
A21: 15 | B21: 15 | C21: 3 | F21: 2 | G21: 15 | I21: 5 | M21: 15 | O21: 15
A22: 16 | B22: 16 | D22: 4 | F22: 3 | G22: 16 | H22: 2 | I22: 4 | M22: 16 | O22: 16
A23: 17 | B23: 17 | C23: 2 | D23: 1 | E23: 1 | F23: 3 | G23: 17 | H23: 1 | I23: 5 | M23: 17 | O23: 17
A24: 18 | B24: 18 | C24: 3 | E24: 1 | F24: 3 | G24: 18 | I24: 6 | M24: 18 | O24: 18
A25: 19 | B25: 19 | C25: 3 | D25: 1 | F25: 3 | G25: 19 | H25: 2 | I25: 5 | M25: 19 | O25: 19
A26: 20 | B26: 20 | C26: 4 | F26: 3 | G26: 20 | H26: 1 | I26: 6 | M26: 20 | O26: 20
A27: 21 | B27: 21 | C27: 3 | E27: 2 | F27: 4 | G27: 21 | I27: 7 | M27: 21 | O27: 21
A28: 22 | B28: 22 | C28: 3 | D28: 1 | E28: 1 | F28: 4 | G28: 22 | H28: 2 | I28: 6 | M28: 22 | O28: 22
A29: 23 | B29: 23 | C29: 3 | D29: 2 | F29: 4 | G29: 23 | H29: 1 | I29: 7 | M29: 23 | O29: 23
A30: 24 | B30: 24 | C30: 4 | D30: 1 | F30: 4 | G30: 24 | I30: 8 | M30: 24 | O30: 24
A31: 25 | B31: 25 | C31: 5 | F31: 4 | G31: 25 | H31: 2 | I31: 7 | M31: 25 | O31: 25
A32: 26 | B32: 26 | C32: 4 | E32: 2 | F32: 5 | G32: 26 | H32: 1 | I32: 8 | M32: 26 | O32: 26
A33: 27 | B33: 27 | C33: 4 | D33: 1 | E33: 1 | F33: 5 | G33: 27 | I33: 9 | M33: 27 | O33: 27
A34: 28 | B34: 28 | C34: 5 | E34: 1 | F34: 5 | G34: 28 | H34: 2 | I34: 8 | M34: 28 | O34: 28
A35: 29 | B35: 29 | C35: 5 | D35: 1 | F35: 5 | G35: 29 | H35: 1 | I35: 9 | M35: 29 | O35: 29
A36: 30 | B36: 30 | C36: 6 | F36: 5 | G36: 30 | I36: 10 | M36: 30 | O36: 30

Sheet LG LSCB Configure Tool
B5: TiLED Part Number Configurator
E6: =+C8&" "&E8 -> LG LSCB Ultra Slim
E7: =IFERROR(VLOOKUP(E6,MFGSER,11,FALSE),"") ->  | F7: acclaim p
B8: Select Manufacturer | C8: LG | D8: Select dvLED Series | E8: LSCB Ultra Slim
B9: =IF(C9="Please Call Chief Project Manager for available options. (952)-225-6931","X","Z") -> Z
B11: How Many Rows? (How many TiLES high?) | C11: How Many Columns? (How many TiLES wide?)
B12: 6 | C12: 6
B13: For configuations taller than 10 displays high contact Chief Project Manager at (952)-225-6931 or send an email to lukas.westin@legrand.com
B15: Wall Mount Part # | C15: Qty | E15: Side Cover Part # | F15: Qty
B16: TILD1X3LG2-L | C16: =(VLOOKUP(B12,typeUSLIM,4,FALSE)) -> 2 | E16: Coming Soon!
B17: TILD1X3LG2-M | C17: =(VLOOKUP(B12,typeUSLIM,4,FALSE))*(C12-1) -> 10 | E17: Coming Soon!
B18: TILD1X3LG2-R | C18: =(VLOOKUP(B12,typeUSLIM,4,FALSE)) -> 2
B19: TILD1X4LG2-L | C19: =(VLOOKUP(B12,typeUSLIM,3,FALSE)) -> 0
B20: TILD1X4LG2-M | C20: =(VLOOKUP(B12,typeUSLIM,3,FALSE))*(C12-1) -> 0
B21: TILD1X4LG2-R | C21: =(VLOOKUP(B12,typeUSLIM,3,FALSE)) -> 0
B22: TILD1X5LG2-L | C22: =(VLOOKUP(B12,typeUSLIM,2,FALSE)) -> 0 | F22: b,b,
B23: TILD1X5LG2-M | C23: =(VLOOKUP(B12,typeUSLIM,2,FALSE))*(C12-1) -> 0
B24: TILD1X5LG2-R | C24: =(VLOOKUP(B12,typeUSLIM,2,FALSE)) -> 0
B25: TILVAB2 | C25: =(VLOOKUP(B12,typeUSLIM,5,FALSE))*(C12+1) -> 7
B26: TILHDW1 | C26: =(VLOOKUP(B12,typeUSLIM,6,FALSE))*C12 -> 36
B29: legrandav.com/chief
A31: =+#REF!&G18 -> 
A32: =+#REF!&G18 -> 
A33: =+#REF!&G18 -> 
H39: =IF((AND(H38=TRUE,#REF!= TRUE)), TRUE, FALSE) ->  | I39: =IF((AND(I38=TRUE, H39=TRUE)), TRUE, FALSE) ->  | J39: =IF((AND(J38=TRUE,#REF!= TRUE)), TRUE, FALSE) ->  | K39: =IF((AND(K38=TRUE,#REF!= TRUE)), TRUE, FALSE) ->  | L39: =IF((AND(L38=TRUE,#REF!= TRUE)), TRUE, FALSE) -> 
H40: =IF((AND(H39=TRUE,#REF!= TRUE)), TRUE, FALSE) ->  | J40: =IF((AND(J39=TRUE,#REF!= TRUE)), TRUE, FALSE) ->  | K40: =IF((AND(K39=TRUE,#REF!= TRUE)), TRUE, FALSE) ->  | L40: =IF((AND(L39=TRUE,#REF!= TRUE)), TRUE, FALSE) -> 
H41: =IF((AND(H40=TRUE,#REF!= TRUE)), TRUE, FALSE) ->  | J41: =IF((AND(J40=TRUE,#REF!= TRUE)), TRUE, FALSE) ->  | K41: =IF((AND(K40=TRUE,#REF!= TRUE)), TRUE, FALSE) ->  | L41: =IF((AND(L40=TRUE,#REF!= TRUE)), TRUE, FALSE) -> 
H42: =IF((AND(H41=TRUE,#REF!= TRUE)), TRUE, FALSE) ->  | J42: =IF((AND(J41=TRUE,#REF!= TRUE)), TRUE, FALSE) ->  | K42: =IF((AND(K41=TRUE,#REF!= TRUE)), TRUE, FALSE) ->  | L42: =IF((AND(L41=TRUE,#REF!= TRUE)), TRUE, FALSE) -> 
H43: =IF((AND(H42=TRUE,#REF!= TRUE)), TRUE, FALSE) ->  | J43: =IF((AND(J42=TRUE,#REF!= TRUE)), TRUE, FALSE) ->  | K43: =IF((AND(K42=TRUE,#REF!= TRUE)), TRUE, FALSE) ->  | L43: =IF((AND(L42=TRUE,#REF!= TRUE)), TRUE, FALSE) -> 
H44: =IF((AND(H43=TRUE,#REF!= TRUE)), TRUE, FALSE) ->  | J44: =IF((AND(J43=TRUE,#REF!= TRUE)), TRUE, FALSE) ->  | K44: =IF((AND(K43=TRUE,#REF!= TRUE)), TRUE, FALSE) ->  | L44: =IF((AND(L43=TRUE,#REF!= TRUE)), TRUE, FALSE) -> 
